Workbook

Sheet Introduction
C2: Gas transmission pipelines
C3: Financial performance data
C4: This workbook contains financial performance data for the gas transmission pipelines that are regulated as scheme pipelines. A series of explanatory notes are published alongside this dataset on our website. We encourage stakeholders to read these notes, which detail how we calculate and interpret the profitability measures.
C6: Coverage
C7: The data covers the regulatory years from 2014 to 2024. Victorian Transmission System (VTS) report on a calendar year basis, and so for these businesses the label 2015 refers to the year ending 31 December 2015. Amadeus Gas Pipeline (AGP) and the Roma to Brisbane Pipeline (RBP) report on a financial year basis, and for these businesses the label 2015 refers to data collected for the year ending 30 June 2015. All profitability metrics relate to services provided as a scheme pipeline for gas transmission pipelines. Unless otherwise stated, all financial values are in nominal dollar terms.
C8: Confidentiality
C9: The following revenue and return on assets data have been redacted from this dataset for confidentiality reasons: Amadeus Gas Pipeline - for the entire time series Roma to Brisbane Pipeline - from 2022 to 2024.
C12: Sources
C13: Data sources for the financial and non-financial information used to determine the profitability measures are listed in each of the worksheets.
C15: Version record
C16: Version | D16: Publication date | E16: Data | F16: Profitability measures | G16: Segment
C17: 4.3 | D17: December 2025 | E17: Regulatory years 2014 to 2024 | F17: RoRE and ROA | G17: Transmission only
C18: 4.2 | D18: December 2024 | E18: Regulatory years 2014 to 2023 | F18: RoRE and ROA | G18: Transmission only
C19: 4.1 | D19: June 2024 | E19: Regulatory years 2014 to 2023 | F19: RoRE, RoA and EBIT per customer | G19: Distribution only
C20: 3 | D20: December 2023 | E20: Regulatory years 2014 to 2022 | F20: RoRE, RoA and EBIT per customer | G20: Distribution and Transmission
C21: 2 | D21: December 2022 | E21: Regulatory years 2014 to 2021 | F21: RoRE, RoA and EBIT per customer | G21: Distribution and Transmission
C22: 1 | D22: December 2021 | E22: Regulatory years 2014 to 2020 | F22: RoA and EBIT per customer | G22: Distribution only

Sheet Inputs (hidden)
A2: TNSP | B2: Returns from indexation of the RAB | C2: Incentive Schemes | D2: Revenue pass-throughs | E2: Summary headings | F2: Benchmark | G2: Capex
A3: Amadeus Gas Pipeline | B3: Inclusive | C3: Inclusive | D3: Inclusive | E3: Allowed nominal rate of return | F3: Yes | G3: Yes
A4: Roma Brisbane Pipeline | B4: Exclusive | C4: Exclusive | D4: Exclusive | E4: Allowed real rate of return | F4: No | G4: No
A5: Victorian Transmission System | E5: Allowed nominal return on equity
E6: Allowed real return on equity
E7: Nominal return on assets
E8: Real return on assets
E9: Nominal return on regulated equity
E10: Real return on regulated equity

Sheet Data
A1: Trading Name | C1: Year | D1: Value
A2: Amadeus Gas Pipeline | B2: Indexation | C2: 2014 | D2: 3109779.287
A3: Amadeus Gas Pipeline | B3: Indexation | C3: 2015 | D3: 1429683.781
A4: Amadeus Gas Pipeline | B4: Indexation | C4: 2016 | D4: 1407669.899
A5: Amadeus Gas Pipeline | B5: Indexation | C5: 2017 | D5: 1709473.318
A6: Amadeus Gas Pipeline | B6: Indexation | C6: 2018 | D6: 2278575.885
A7: Amadeus Gas Pipeline | B7: Indexation | C7: 2019 | D7: 2135977.439
A8: Amadeus Gas Pipeline | B8: Indexation | C8: 2020 | D8: 2255960.968
A9: Amadeus Gas Pipeline | B9: Indexation | C9: 2021 | D9: 1129387.667
A10: Amadeus Gas Pipeline | B10: Indexation | C10: 2022 | D10: 4463253.701
A11: Amadeus Gas Pipeline | B11: Inflation rate | C11: 2014 | D11: 0.0292969
A12: Amadeus Gas Pipeline | B12: Inflation rate | C12: 2015 | D12: 0.0132827
A13: Amadeus Gas Pipeline | B13: Inflation rate | C13: 2016 | D13: 0.0131086
A14: Amadeus Gas Pipeline | B14: Inflation rate | C14: 2017 | D14: 0.0147601
A15: Amadeus Gas Pipeline | B15: Inflation rate | C15: 2018 | D15: 0.0190909
A16: Amadeus Gas Pipeline | B16: Inflation rate | C16: 2019 | D16: 0.0178412
A17: Amadeus Gas Pipeline | B17: Inflation rate | C17: 2020 | D17: 0.0184049
A18: Amadeus Gas Pipeline | B18: Inflation rate | C18: 2021 | D18: 0.0086059
A19: Amadeus Gas Pipeline | B19: Inflation rate | C19: 2022 | D19: 0.0349829
A20: Amadeus Gas Pipeline | B20: Inflation rate | C20: 2024 | D20: 0.04051987768
A21: Amadeus Gas Pipeline | B21: Nominal straight line depreciation | C21: 2014 | D21: 5635374.243
A22: Amadeus Gas Pipeline | B22: Nominal straight line depreciation | C22: 2015 | D22: 5864832.844
A23: Amadeus Gas Pipeline | B23: Nominal straight line depreciation | C23: 2016 | D23: 3381143.924
A24: Amadeus Gas Pipeline | B24: Nominal straight line depreciation | C24: 2017 | D24: 3509657.185
A25: Amadeus Gas Pipeline | B25: Nominal straight line depreciation | C25: 2018 | D25: 3812538.68
A26: Amadeus Gas Pipeline | B26: Nominal straight line depreciation | C26: 2019 | D26: 4008104.443
A27: Amadeus Gas Pipeline | B27: Nominal straight line depreciation | C27: 2020 | D27: 4203322.548
A28: Amadeus Gas Pipeline | B28: Nominal straight line depreciation | C28: 2021 | D28: 4410630.359
A29: Amadeus Gas Pipeline | B29: Nominal straight line depreciation | C29: 2022 | D29: 4362193.65
A30: Amadeus Gas Pipeline | B30: Nominal straight line depreciation | C30: 2024 | D30: 5228369.479
A31: Amadeus Gas Pipeline | B31: Opening Regulatory Asset Base (Nominal) | C31: 2014 | D31: 106147133
A32: Amadeus Gas Pipeline | B32: Opening Regulatory Asset Base (Nominal) | C32: 2015 | D32: 107634764.6
A33: Amadeus Gas Pipeline | B33: Opening Regulatory Asset Base (Nominal) | C33: 2016 | D33: 107385103.7
A34: Amadeus Gas Pipeline | B34: Opening Regulatory Asset Base (Nominal) | C34: 2017 | D34: 115816817.3
A35: Amadeus Gas Pipeline | B35: Opening Regulatory Asset Base (Nominal) | C35: 2018 | D35: 119353974.9
A36: Amadeus Gas Pipeline | B36: Opening Regulatory Asset Base (Nominal) | C36: 2019 | D36: 119721535.5
A37: Amadeus Gas Pipeline | B37: Opening Regulatory Asset Base (Nominal) | C37: 2020 | D37: 122573879.3
A38: Amadeus Gas Pipeline | B38: Opening Regulatory Asset Base (Nominal) | C38: 2021 | D38: 131234846.9
A39: Amadeus Gas Pipeline | B39: Opening Regulatory Asset Base (Nominal) | C39: 2022 | D39: 127583739.9
A40: Amadeus Gas Pipeline | B40: Opening Regulatory Asset Base (Nominal) | C40: 2024 | D40: 147303164.8
A41: Amadeus Gas Pipeline | B41: Operating expenditure | C41: 2014 | D41: 11412055.45
A42: Amadeus Gas Pipeline | B42: Operating expenditure | C42: 2015 | D42: 11669200.23
A43: Amadeus Gas Pipeline | B43: Operating expenditure | C43: 2016 | D43: 12125176.58
A44: Amadeus Gas Pipeline | B44: Operating expenditure | C44: 2017 | D44: 12221570.51
A45: Amadeus Gas Pipeline | B45: Operating expenditure | C45: 2018 | D45: 11748571.74
A46: Amadeus Gas Pipeline | B46: Operating expenditure | C46: 2019 | D46: 12049037.24
A47: Amadeus Gas Pipeline | B47: Operating expenditure | C47: 2020 | D47: 12198028.39
A48: Amadeus Gas Pipeline | B48: Operating expenditure | C48: 2021 | D48: 10981058.69
A49: Amadeus Gas Pipeline | B49: Operating expenditure | C49: 2022 | D49: 12991294.48
A50: Amadeus Gas Pipeline | B50: Operating expenditure | C50: 2024 | D50: 14457007.32
A51: Amadeus Gas Pipeline | B51: allowed nominal rate of return | C51: 2014 | D51: 0.1087384558
A52: Amadeus Gas Pipeline | B52: allowed nominal rate of return | C52: 2015 | D52: 0.1087384558
A53: Amadeus Gas Pipeline | B53: allowed nominal rate of return | C53: 2016 | D53: 0.1087384558
A54: Amadeus Gas Pipeline | B54: allowed nominal rate of return | C54: 2017 | D54: 0.06619648012
A55: Amadeus Gas Pipeline | B55: allowed nominal rate of return | C55: 2018 | D55: 0.06591142964
A56: Amadeus Gas Pipeline | B56: allowed nominal rate of return | C56: 2019 | D56: 0.06527029196
A57: Amadeus Gas Pipeline | B57: allowed nominal rate of return | C57: 2020 | D57: 0.06448993434
A58: Amadeus Gas Pipeline | B58: allowed nominal rate of return | C58: 2021 | D58: 0.06286151722
A59: Amadeus Gas Pipeline | B59: allowed nominal rate of return | C59: 2022 | D59: 0.05080694465
A60: Amadeus Gas Pipeline | B60: allowed nominal rate of return | C60: 2024 | D60: 0.05033535989
A61: Amadeus Gas Pipeline | B61: allowed real rate of return | C61: 2014 | D61: 0.08116865507
A62: Amadeus Gas Pipeline | B62: allowed real rate of return | C62: 2015 | D62: 0.08116865507
A63: Amadeus Gas Pipeline | B63: allowed real rate of return | C63: 2016 | D63: 0.08116865507
A64: Amadeus Gas Pipeline | B64: allowed real rate of return | C64: 2017 | D64: 0.04130022821
A65: Amadeus Gas Pipeline | B65: allowed real rate of return | C65: 2018 | D65: 0.04102183381
A66: Amadeus Gas Pipeline | B66: allowed real rate of return | C66: 2019 | D66: 0.04039566703
A67: Amadeus Gas Pipeline | B67: allowed real rate of return | C67: 2020 | D67: 0.03963353118
A68: Amadeus Gas Pipeline | B68: allowed real rate of return | C68: 2021 | D68: 0.03804313846
A69: Amadeus Gas Pipeline | B69: allowed real rate of return | C69: 2022 | D69: 0.03020907574
A70: Amadeus Gas Pipeline | B70: allowed real rate of return | C70: 2024 | D70: 0.02974673495
A71: Amadeus Gas Pipeline | B71: Allowed nominal return on equity | C71: 2014 | D71: 0.1033
A72: Amadeus Gas Pipeline | B72: Allowed nominal return on equity | C72: 2015 | D72: 0.1033
A73: Amadeus Gas Pipeline | B73: Allowed nominal return on equity | C73: 2016 | D73: 0.1033
A74: Amadeus Gas Pipeline | B74: Allowed nominal return on equity | C74: 2017 | D74: 0.071
A75: Amadeus Gas Pipeline | B75: Allowed nominal return on equity | C75: 2018 | D75: 0.071
A76: Amadeus Gas Pipeline | B76: Allowed nominal return on equity | C76: 2019 | D76: 0.071
A77: Amadeus Gas Pipeline | B77: Allowed nominal return on equity | C77: 2020 | D77: 0.071
A78: Amadeus Gas Pipeline | B78: Allowed nominal return on equity | C78: 2021 | D78: 0.071
A79: Amadeus Gas Pipeline | B79: Allowed nominal return on equity | C79: 2022 | D79: 0.049995756
A80: Amadeus Gas Pipeline | B80: Allowed nominal return on equity | C80: 2024 | D80: 0.049995756
A81: Amadeus Gas Pipeline | B81: Allowed real return on equity | C81: 2014 | D81: 0.0758654315
A82: Amadeus Gas Pipeline | B82: Allowed real return on equity | C82: 2015 | D82: 0.0758654315
A83: Amadeus Gas Pipeline | B83: Allowed real return on equity | C83: 2016 | D83: 0.0758654315
A84: Amadeus Gas Pipeline | B84: Allowed real return on equity | C84: 2017 | D84: 0.04599158336
A85: Amadeus Gas Pipeline | B85: Allowed real return on equity | C85: 2018 | D85: 0.04599158336
A86: Amadeus Gas Pipeline | B86: Allowed real return on equity | C86: 2019 | D86: 0.04599158336
A87: Amadeus Gas Pipeline | B87: Allowed real return on equity | C87: 2020 | D87: 0.04599158336
A88: Amadeus Gas Pipeline | B88: Allowed real return on equity | C88: 2021 | D88: 0.04599158336
A89: Amadeus Gas Pipeline | B89: Allowed real return on equity | C89: 2022 | D89: 0.02941378797
A90: Amadeus Gas Pipeline | B90: Allowed real return on equity | C90: 2024 | D90: 0.02941378797
A91: Amadeus Gas Pipeline | B91: forecast inflation | C91: 2014 | D91: 0.0255
A92: Amadeus Gas Pipeline | B92: forecast inflation | C92: 2015 | D92: 0.0255
A93: Amadeus Gas Pipeline | B93: forecast inflation | C93: 2016 | D93: 0.0255
A94: Amadeus Gas Pipeline | B94: forecast inflation | C94: 2017 | D94: 0.02390881249
A95: Amadeus Gas Pipeline | B95: forecast inflation | C95: 2018 | D95: 0.02390881249
A96: Amadeus Gas Pipeline | B96: forecast inflation | C96: 2019 | D96: 0.02390881249
A97: Amadeus Gas Pipeline | B97: forecast inflation | C97: 2020 | D97: 0.02390881249
A98: Amadeus Gas Pipeline | B98: forecast inflation | C98: 2021 | D98: 0.02390881249
A99: Amadeus Gas Pipeline | B99: forecast inflation | C99: 2022 | D99: 0.0199938725
A100: Amadeus Gas Pipeline | B100: forecast inflation | C100: 2024 | D100: 0.0199938725
A101: Amadeus Gas Pipeline | B101: Forecast Opening RAB | C101: 2014 | D101: 104446801.3
A102: Amadeus Gas Pipeline | B102: Forecast Opening RAB | C102: 2015 | D102: 103203639.3
A103: Amadeus Gas Pipeline | B103: Forecast Opening RAB | C103: 2016 | D103: 101375203.1
A104: Amadeus Gas Pipeline | B104: Forecast Opening RAB | C104: 2017 | D104: 115816817.3
A105: Amadeus Gas Pipeline | B105: Forecast Opening RAB | C105: 2018 | D105: 122985574.9
A106: Amadeus Gas Pipeline | B106: Forecast Opening RAB | C106: 2019 | D106: 124717276.7
A107: Amadeus Gas Pipeline | B107: Forecast Opening RAB | C107: 2020 | D107: 125961838.5
A108: Amadeus Gas Pipeline | B108: Forecast Opening RAB | C108: 2021 | D108: 127120447.3
A109: Amadeus Gas Pipeline | B109: Forecast Opening RAB | C109: 2022 | D109: 127583739.9
A110: Amadeus Gas Pipeline | B110: Forecast Opening RAB | C110: 2024 | D110: 129484803.1
A111: Amadeus Gas Pipeline | B111: Forecast operating and maintenance expenditure | C111: 2014 | D111: 14520954.04
A112: Amadeus Gas Pipeline | B112: Forecast operating and maintenance expenditure | C112: 2015 | D112: 15505760.3
A113: Amadeus Gas Pipeline | B113: Forecast operating and maintenance expenditure | C113: 2016 | D113: 17303211
A114: Amadeus Gas Pipeline | B114: Forecast operating and maintenance expenditure | C114: 2017 | D114: 12159581.12
A115: Amadeus Gas Pipeline | B115: Forecast operating and maintenance expenditure | C115: 2018 | D115: 13406490.86
A116: Amadeus Gas Pipeline | B116: Forecast operating and maintenance expenditure | C116: 2019 | D116: 14649002.52
A117: Amadeus Gas Pipeline | B117: Forecast operating and maintenance expenditure | C117: 2020 | D117: 12719407.04
A118: Amadeus Gas Pipeline | B118: Forecast operating and maintenance expenditure | C118: 2021 | D118: 13358563.8
A119: Amadeus Gas Pipeline | B119: Forecast operating and maintenance expenditure | C119: 2022 | D119: 10729255.31
A120: Amadeus Gas Pipeline | B120: Forecast operating and maintenance expenditure | C120: 2024 | D120: 11052579.83
A121: Victorian Transmission System | B121: Allowed nominal return on equity | C121: 2014 | D121: 0.080199
A122: Victorian Transmission System | B122: Allowed nominal return on equity | C122: 2015 | D122: 0.080199
A123: Victorian Transmission System | B123: Allowed nominal return on equity | C123: 2016 | D123: 0.080199
A124: Victorian Transmission System | B124: Allowed nominal return on equity | C124: 2017 | D124: 0.080199
A125: Victorian Transmission System | B125: Allowed nominal return on equity | C125: 2018 | D125: 0.073
A126: Victorian Transmission System | B126: Allowed nominal return on equity | C126: 2019 | D126: 0.073
A127: Victorian Transmission System | B127: Allowed nominal return on equity | C127: 2020 | D127: 0.073
A128: Victorian Transmission System | B128: Allowed nominal return on equity | C128: 2021 | D128: 0.073
A129: Victorian Transmission System | B129: Allowed nominal return on equity | C129: 2022 | D129: 0.073
A130: Victorian Transmission System | B130: Allowed nominal return on equity | C130: 2024 | D130: 0.07444432053
A131: Victorian Transmission System | B131: Allowed real return on equity | C131: 2014 | D131: 0.05385268293
A132: Victorian Transmission System | B132: Allowed real return on equity | C132: 2015 | D132: 0.05385268293
A133: Victorian Transmission System | B133: Allowed real return on equity | C133: 2016 | D133: 0.05385268293
A134: Victorian Transmission System | B134: Allowed real return on equity | C134: 2017 | D134: 0.05385268293
A135: Victorian Transmission System | B135: Allowed real return on equity | C135: 2018 | D135: 0.04734066535
A136: Victorian Transmission System | B136: Allowed real return on equity | C136: 2019 | D136: 0.04734066535
A137: Victorian Transmission System | B137: Allowed real return on equity | C137: 2020 | D137: 0.04734066535
A138: Victorian Transmission System | B138: Allowed real return on equity | C138: 2021 | D138: 0.04734066535
A139: Victorian Transmission System | B139: Allowed real return on equity | C139: 2022 | D139: 0.04734066535
A140: Victorian Transmission System | B140: Allowed real return on equity | C140: 2024 | D140: 0.04065436938
A141: Victorian Transmission System | B141: forecast inflation | C141: 2014 | D141: 0.025
A142: Victorian Transmission System | B142: forecast inflation | C142: 2015 | D142: 0.025
A143: Victorian Transmission System | B143: forecast inflation | C143: 2016 | D143: 0.025
A144: Victorian Transmission System | B144: forecast inflation | C144: 2017 | D144: 0.025
A145: Victorian Transmission System | B145: forecast inflation | C145: 2018 | D145: 0.02449951148
A146: Victorian Transmission System | B146: forecast inflation | C146: 2019 | D146: 0.02449951148
A147: Victorian Transmission System | B147: forecast inflation | C147: 2020 | D147: 0.02449951148
A148: Victorian Transmission System | B148: forecast inflation | C148: 2021 | D148: 0.02449951148
A149: Victorian Transmission System | B149: forecast inflation | C149: 2022 | D149: 0.02449951148
A150: Victorian Transmission System | B150: forecast inflation | C150: 2024 | D150: 0.03246990753
A151: Victorian Transmission System | B151: Forecast Opening RAB | C151: 2014 | D151: 649947401.6
A152: Victorian Transmission System | B152: Forecast Opening RAB | C152: 2015 | D152: 742463656.8
A153: Victorian Transmission System | B153: Forecast Opening RAB | C153: 2016 | D153: 756282007.2
A154: Victorian Transmission System | B154: Forecast Opening RAB | C154: 2017 | D154: 757495949.6
A155: Victorian Transmission System | B155: Forecast Opening RAB | C155: 2018 | D155: 971113287.5
A156: Victorian Transmission System | B156: Forecast Opening RAB | C156: 2019 | D156: 1022808482
A157: Victorian Transmission System | B157: Forecast Opening RAB | C157: 2020 | D157: 1085617941
A158: Victorian Transmission System | B158: Forecast Opening RAB | C158: 2021 | D158: 1145020679
A159: Victorian Transmission System | B159: Forecast Opening RAB | C159: 2022 | D159: 1141798582
A160: Victorian Transmission System | B160: Forecast Opening RAB | C160: 2024 | D160: 1391265467
A161: Victorian Transmission System | B161: Forecast operating and maintenance expenditure | C161: 2014 | D161: 30542489.35
A162: Victorian Transmission System | B162: Forecast operating and maintenance expenditure | C162: 2015 | D162: 32006502.42
A163: Victorian Transmission System | B163: Forecast operating and maintenance expenditure | C163: 2016 | D163: 33506750.84
A164: Victorian Transmission System | B164: Forecast operating and maintenance expenditure | C164: 2017 | D164: 34105143.33
A165: Victorian Transmission System | B165: Forecast operating and maintenance expenditure | C165: 2018 | D165: 26417209.04
A166: Victorian Transmission System | B166: Forecast operating and maintenance expenditure | C166: 2019 | D166: 27007916.33
A167: Victorian Transmission System | B167: Forecast operating and maintenance expenditure | C167: 2020 | D167: 27247910.34
A168: Victorian Transmission System | B168: Forecast operating and maintenance expenditure | C168: 2021 | D168: 29292567.79
A169: Victorian Transmission System | B169: Forecast operating and maintenance expenditure | C169: 2022 | D169: 31810030.85
A170: Victorian Transmission System | B170: Forecast operating and maintenance expenditure | C170: 2024 | D170: 38478840.01
A171: Victorian Transmission System | B171: Indexation | C171: 2014 | D171: 11160882.28
A172: Victorian Transmission System | B172: Indexation | C172: 2015 | D172: 12875290.77
A173: Victorian Transmission System | B173: Indexation | C173: 2016 | D173: 12437931.22
A174: Victorian Transmission System | B174: Indexation | C174: 2017 | D174: 17525245.67
A175: Victorian Transmission System | B175: Indexation | C175: 2018 | D175: 17325839.21
A176: Victorian Transmission System | B176: Indexation | C176: 2019 | D176: 17969136.62
A177: Victorian Transmission System | B177: Indexation | C177: 2020 | D177: 8592214.279
A178: Victorian Transmission System | B178: Indexation | C178: 2021 | D178: 34851039.28
A179: Victorian Transmission System | B179: Indexation | C179: 2022 | D179: 81862011.7
A180: Victorian Transmission System | B180: Inflation rate | C180: 2014 | D180: 0.0171756
A181: Victorian Transmission System | B181: Inflation rate | C181: 2015 | D181: 0.0168856
A182: Victorian Transmission System | B182: Inflation rate | C182: 2016 | D182: 0.0147601
A183: Victorian Transmission System | B183: Inflation rate | C183: 2017 | D183: 0.0190909
A184: Victorian Transmission System | B184: Inflation rate | C184: 2018 | D184: 0.0178412
A185: Victorian Transmission System | B185: Inflation rate | C185: 2019 | D185: 0.0184049
A186: Victorian Transmission System | B186: Inflation rate | C186: 2020 | D186: 0.0086059
A187: Victorian Transmission System | B187: Inflation rate | C187: 2021 | D187: 0.0349829
A188: Victorian Transmission System | B188: Inflation rate | C188: 2022 | D188: 0.0783182
A189: Victorian Transmission System | B189: Inflation rate | C189: 2024 | D189: 0.0242468773
A190: Victorian Transmission System | B190: Nominal straight line depreciation | C190: 2014 | D190: 26370110.12
A191: Victorian Transmission System | B191: Nominal straight line depreciation | C191: 2015 | D191: 30152812.41
A192: Victorian Transmission System | B192: Nominal straight line depreciation | C192: 2016 | D192: 31569014.66
A193: Victorian Transmission System | B193: Nominal straight line depreciation | C193: 2017 | D193: 29773524.83
A194: Victorian Transmission System | B194: Nominal straight line depreciation | C194: 2018 | D194: 36530703.63
A195: Victorian Transmission System | B195: Nominal straight line depreciation | C195: 2019 | D195: 40307568.46
A196: Victorian Transmission System | B196: Nominal straight line depreciation | C196: 2020 | D196: 43622721.5
A197: Victorian Transmission System | B197: Nominal straight line depreciation | C197: 2021 | D197: 47832215.7
A198: Victorian Transmission System | B198: Nominal straight line depreciation | C198: 2022 | D198: 43983041.23
A199: Victorian Transmission System | B199: Nominal straight line depreciation | C199: 2024 | D199: 70650145.45
A200: Victorian Transmission System | B200: Opening Regulatory Asset Base (Nominal) | C200: 2014 | D200: 649811368.5
... 504 more rows

Sheet Summary - Return on assets
B2: Return on assets - Summary results
B30: Returns from indexation of the RAB | C30: Exclusive
B32: Transmission
B34: =IF(C30 = "Inclusive", "Nominal return on assets","Real return on assets") -> Real return on assets | C34: Including returns from incentive schemes
B36: Return on Assets | C36: 2014 | D36: 2015 | E36: 2016 | F36: 2017 | G36: 2018 | H36: 2019 | I36: 2020 | J36: 2021 | K36: 2022 | L36: 2023 | M36: 2024
B37: Victorian Transmission System | C37: =SUMIFS(Data!$D:$D,Data!$A:$A,$B37,Data!$C:$C,C$36,Data!$B:$B,$B$34) -> 0.08786222553 | D37: =SUMIFS(Data!$D:$D,Data!$A:$A,$B37,Data!$C:$C,D$36,Data!$B:$B,$B$34) -> 0.07861134438 | E37: =SUMIFS(Data!$D:$D,Data!$A:$A,$B37,Data!$C:$C,E$36,Data!$B:$B,$B$34) -> 0.07715828354 | F37: =SUMIFS(Data!$D:$D,Data!$A:$A,$B37,Data!$C:$C,F$36,Data!$B:$B,$B$34) -> 0.07595399287 | G37: =SUMIFS(Data!$D:$D,Data!$A:$A,$B37,Data!$C:$C,G$36,Data!$B:$B,$B$34) -> 0.04304799316 | H37: =SUMIFS(Data!$D:$D,Data!$A:$A,$B37,Data!$C:$C,H$36,Data!$B:$B,$B$34) -> 0.04694150341 | I37: =SUMIFS(Data!$D:$D,Data!$A:$A,$B37,Data!$C:$C,I$36,Data!$B:$B,$B$34) -> 0.04121925976 | J37: =SUMIFS(Data!$D:$D,Data!$A:$A,$B37,Data!$C:$C,J$36,Data!$B:$B,$B$34) -> 0.04557039551 | K37: =SUMIFS(Data!$D:$D,Data!$A:$A,$B37,Data!$C:$C,K$36,Data!$B:$B,$B$34) -> 0.05130814848 | L37: =SUMIFS(Data!$D:$D,Data!$A:$A,$B37,Data!$C:$C,L$36,Data!$B:$B,$B$34) -> 0.01580544656 | M37: =SUMIFS(Data!$D:$D,Data!$A:$A,$B37,Data!$C:$C,M$36,Data!$B:$B,$B$34) -> 0.01698443665
B38: Roma Brisbane Pipeline | C38: =SUMIFS(Data!$D:$D,Data!$A:$A,$B38,Data!$C:$C,C$36,Data!$B:$B,$B$34) -> 0.06328189054 | D38: =SUMIFS(Data!$D:$D,Data!$A:$A,$B38,Data!$C:$C,D$36,Data!$B:$B,$B$34) -> 0.06937739969 | E38: =SUMIFS(Data!$D:$D,Data!$A:$A,$B38,Data!$C:$C,E$36,Data!$B:$B,$B$34) -> 0.07930124365 | F38: =SUMIFS(Data!$D:$D,Data!$A:$A,$B38,Data!$C:$C,F$36,Data!$B:$B,$B$34) -> 0.08525065941 | G38: =SUMIFS(Data!$D:$D,Data!$A:$A,$B38,Data!$C:$C,G$36,Data!$B:$B,$B$34) -> 0.08483516473 | H38: =SUMIFS(Data!$D:$D,Data!$A:$A,$B38,Data!$C:$C,H$36,Data!$B:$B,$B$34) -> 0.0746267743 | I38: =SUMIFS(Data!$D:$D,Data!$A:$A,$B38,Data!$C:$C,I$36,Data!$B:$B,$B$34) -> 0.0715080324 | J38: =SUMIFS(Data!$D:$D,Data!$A:$A,$B38,Data!$C:$C,J$36,Data!$B:$B,$B$34) -> 0.06995500677
B39: Average | C39: =AVERAGE(C37:C38) -> 0.07557205804 | D39: =AVERAGE(D37:D38) -> 0.07399437204 | E39: 0.0782297636 | F39: 0.08060232614 | G39: 0.06394157895 | H39: 0.06078413885 | I39: 0.05636364608 | J39: 0.05776270114 | K39: 0.05130814848 | L39: =AVERAGE(L37:L38) -> 0.01580544656 | M39: =AVERAGE(M37:M38) -> 0.01698443665
B41: =IF(C30 = "Inclusive", "WACC - Allowed nominal rate of return","WACC - Allowed real rate of return") -> WACC - Allowed real rate of return | C41: 2014 | D41: 2015 | E41: 2016 | F41: 2017 | G41: 2018 | H41: 2019 | I41: 2020 | J41: 2021 | K41: 2022 | L41: 2023 | M41: 2024
B42: Victorian Transmission System | C42: =IF($C$30="Exclusive",SUMIFS(Data!$D:$D,Data!$A:$A,$B42,Data!$B:$B,"Allowed real rate of return",Data!$C:$C,C$41),SUMIFS(Data!$D:$D,Data!$A:$A,$B42,Data!$B:$B,"Allowed nominal rate of return",Data!$C:$C,C$41)) -> 0.0546 | D42: =IF($C$30="Exclusive",SUMIFS(Data!$D:$D,Data!$A:$A,$B42,Data!$B:$B,"Allowed real rate of return",Data!$C:$C,D$41),SUMIFS(Data!$D:$D,Data!$A:$A,$B42,Data!$B:$B,"Allowed nominal rate of return",Data!$C:$C,D$41)) -> 0.0546 | E42: =IF($C$30="Exclusive",SUMIFS(Data!$D:$D,Data!$A:$A,$B42,Data!$B:$B,"Allowed real rate of return",Data!$C:$C,E$41),SUMIFS(Data!$D:$D,Data!$A:$A,$B42,Data!$B:$B,"Allowed nominal rate of return",Data!$C:$C,E$41)) -> 0.0546 | F42: =IF($C$30="Exclusive",SUMIFS(Data!$D:$D,Data!$A:$A,$B42,Data!$B:$B,"Allowed real rate of return",Data!$C:$C,F$41),SUMIFS(Data!$D:$D,Data!$A:$A,$B42,Data!$B:$B,"Allowed nominal rate of return",Data!$C:$C,F$41)) -> 0.0546 | G42: =IF($C$30="Exclusive",SUMIFS(Data!$D:$D,Data!$A:$A,$B42,Data!$B:$B,"Allowed real rate of return",Data!$C:$C,G$41),SUMIFS(Data!$D:$D,Data!$A:$A,$B42,Data!$B:$B,"Allowed nominal rate of return",Data!$C:$C,G$41)) -> 0.03630865571 | H42: =IF($C$30="Exclusive",SUMIFS(Data!$D:$D,Data!$A:$A,$B42,Data!$B:$B,"Allowed real rate of return",Data!$C:$C,H$41),SUMIFS(Data!$D:$D,Data!$A:$A,$B42,Data!$B:$B,"Allowed nominal rate of return",Data!$C:$C,H$41)) -> 0.03623605486 | I42: =IF($C$30="Exclusive",SUMIFS(Data!$D:$D,Data!$A:$A,$B42,Data!$B:$B,"Allowed real rate of return",Data!$C:$C,I$41),SUMIFS(Data!$D:$D,Data!$A:$A,$B42,Data!$B:$B,"Allowed nominal rate of return",Data!$C:$C,I$41)) -> 0.03527607349 | J42: =IF($C$30="Exclusive",SUMIFS(Data!$D:$D,Data!$A:$A,$B42,Data!$B:$B,"Allowed real rate of return",Data!$C:$C,J$41),SUMIFS(Data!$D:$D,Data!$A:$A,$B42,Data!$B:$B,"Allowed nominal rate of return",Data!$C:$C,J$41)) -> 0.03393715792 | K42: =IF($C$30="Exclusive",SUMIFS(Data!$D:$D,Data!$A:$A,$B42,Data!$B:$B,"Allowed real rate of return",Data!$C:$C,K$41),SUMIFS(Data!$D:$D,Data!$A:$A,$B42,Data!$B:$B,"Allowed nominal rate of return",Data!$C:$C,K$41)) -> 0.03294706967 | L42: =IF($C$30="Exclusive",SUMIFS(Data!$D:$D,Data!$A:$A,$B42,Data!$B:$B,"Allowed real rate of return",Data!$C:$C,L$41),SUMIFS(Data!$D:$D,Data!$A:$A,$B42,Data!$B:$B,"Allowed nominal rate of return",Data!$C:$C,L$41)) -> 0.02557429261 | M42: =IF($C$30="Exclusive",SUMIFS(Data!$D:$D,Data!$A:$A,$B42,Data!$B:$B,"Allowed real rate of return",Data!$C:$C,M$41),SUMIFS(Data!$D:$D,Data!$A:$A,$B42,Data!$B:$B,"Allowed nominal rate of return",Data!$C:$C,M$41)) -> 0.02653580268
B43: Roma Brisbane Pipeline | C43: =IF($C$30="Exclusive",SUMIFS(Data!$D:$D,Data!$A:$A,$B43,Data!$B:$B,"Allowed real rate of return",Data!$C:$C,C$41),SUMIFS(Data!$D:$D,Data!$A:$A,$B43,Data!$B:$B,"Allowed nominal rate of return",Data!$C:$C,C$41)) -> 0.05201525887 | D43: =IF($C$30="Exclusive",SUMIFS(Data!$D:$D,Data!$A:$A,$B43,Data!$B:$B,"Allowed real rate of return",Data!$C:$C,D$41),SUMIFS(Data!$D:$D,Data!$A:$A,$B43,Data!$B:$B,"Allowed nominal rate of return",Data!$C:$C,D$41)) -> 0.05201525887 | E43: =IF($C$30="Exclusive",SUMIFS(Data!$D:$D,Data!$A:$A,$B43,Data!$B:$B,"Allowed real rate of return",Data!$C:$C,E$41),SUMIFS(Data!$D:$D,Data!$A:$A,$B43,Data!$B:$B,"Allowed nominal rate of return",Data!$C:$C,E$41)) -> 0.05201525887 | F43: =IF($C$30="Exclusive",SUMIFS(Data!$D:$D,Data!$A:$A,$B43,Data!$B:$B,"Allowed real rate of return",Data!$C:$C,F$41),SUMIFS(Data!$D:$D,Data!$A:$A,$B43,Data!$B:$B,"Allowed nominal rate of return",Data!$C:$C,F$41)) -> 0.05201525887 | G43: =IF($C$30="Exclusive",SUMIFS(Data!$D:$D,Data!$A:$A,$B43,Data!$B:$B,"Allowed real rate of return",Data!$C:$C,G$41),SUMIFS(Data!$D:$D,Data!$A:$A,$B43,Data!$B:$B,"Allowed nominal rate of return",Data!$C:$C,G$41)) -> 0.03383837157 | H43: =IF($C$30="Exclusive",SUMIFS(Data!$D:$D,Data!$A:$A,$B43,Data!$B:$B,"Allowed real rate of return",Data!$C:$C,H$41),SUMIFS(Data!$D:$D,Data!$A:$A,$B43,Data!$B:$B,"Allowed nominal rate of return",Data!$C:$C,H$41)) -> 0.03375700924 | I43: =IF($C$30="Exclusive",SUMIFS(Data!$D:$D,Data!$A:$A,$B43,Data!$B:$B,"Allowed real rate of return",Data!$C:$C,I$41),SUMIFS(Data!$D:$D,Data!$A:$A,$B43,Data!$B:$B,"Allowed nominal rate of return",Data!$C:$C,I$41)) -> 0.03353972296 | J43: =IF($C$30="Exclusive",SUMIFS(Data!$D:$D,Data!$A:$A,$B43,Data!$B:$B,"Allowed real rate of return",Data!$C:$C,J$41),SUMIFS(Data!$D:$D,Data!$A:$A,$B43,Data!$B:$B,"Allowed nominal rate of return",Data!$C:$C,J$41)) -> 0.0324944547 | K43: =IF($C$30="Exclusive",SUMIFS(Data!$D:$D,Data!$A:$A,$B43,Data!$B:$B,"Allowed real rate of return",Data!$C:$C,K$41),SUMIFS(Data!$D:$D,Data!$A:$A,$B43,Data!$B:$B,"Allowed nominal rate of return",Data!$C:$C,K$41)) -> 0.03149116895 | L43: =IF($C$30="Exclusive",SUMIFS(Data!$D:$D,Data!$A:$A,$B43,Data!$B:$B,"Allowed real rate of return",Data!$C:$C,L$41),SUMIFS(Data!$D:$D,Data!$A:$A,$B43,Data!$B:$B,"Allowed nominal rate of return",Data!$C:$C,L$41)) -> 0.02346309512 | M43: =IF($C$30="Exclusive",SUMIFS(Data!$D:$D,Data!$A:$A,$B43,Data!$B:$B,"Allowed real rate of return",Data!$C:$C,M$41),SUMIFS(Data!$D:$D,Data!$A:$A,$B43,Data!$B:$B,"Allowed nominal rate of return",Data!$C:$C,M$41)) -> 0.02446190582
B44: Average | C44: =AVERAGE(C42:C43) -> 0.05330762944 | D44: =AVERAGE(D42:D43) -> 0.05330762944 | E44: 0.05330762944 | F44: 0.05330762944 | G44: 0.03507351364 | H44: 0.03499653205 | I44: 0.03440789822 | J44: 0.03321580631 | K44: 0.03221911931 | L44: =AVERAGE(L42:L43) -> 0.02451869386 | M44: =AVERAGE(M42:M43) -> 0.02549885425

Sheet Summary - Return on equity
B2: Return on regulated equity - Summary results
B30: Returns from indexation of the RAB | C30: Exclusive
B32: Transmission
B34: =IF(C30 = "Inclusive", "Nominal return on regulated equity","Real return on regulated equity") -> Real return on regulated equity | C34: Including returns from incentive schemes
B36: Return on Regulated Equity | C36: 2014 | D36: 2015 | E36: 2016 | F36: 2017 | G36: 2018 | H36: 2019 | I36: 2020 | J36: 2021 | K36: 2022 | L36: 2023 | M36: 2024
B37: Amadeus Gas Pipeline | C37: =SUMIFS(Data!$D:$D,Data!$A:$A,$B37,Data!$C:$C,C$36,Data!$B:$B,$B$34) -> 0.06032429841 | D37: =SUMIFS(Data!$D:$D,Data!$A:$A,$B37,Data!$C:$C,D$36,Data!$B:$B,$B$34) -> 0.05680308673 | E37: =SUMIFS(Data!$D:$D,Data!$A:$A,$B37,Data!$C:$C,E$36,Data!$B:$B,$B$34) -> 0.1566619666 | F37: =SUMIFS(Data!$D:$D,Data!$A:$A,$B37,Data!$C:$C,F$36,Data!$B:$B,$B$34) -> 0.1669104792 | G37: =SUMIFS(Data!$D:$D,Data!$A:$A,$B37,Data!$C:$C,G$36,Data!$B:$B,$B$34) -> 0.2010752096 | H37: =SUMIFS(Data!$D:$D,Data!$A:$A,$B37,Data!$C:$C,H$36,Data!$B:$B,$B$34) -> 0.19351204 | I37: =SUMIFS(Data!$D:$D,Data!$A:$A,$B37,Data!$C:$C,I$36,Data!$B:$B,$B$34) -> 0.1901607464 | J37: =SUMIFS(Data!$D:$D,Data!$A:$A,$B37,Data!$C:$C,J$36,Data!$B:$B,$B$34) -> 0.1946245824 | K37: =SUMIFS(Data!$D:$D,Data!$A:$A,$B37,Data!$C:$C,K$36,Data!$B:$B,$B$34) -> 0.1338504753 | L37: =SUMIFS(Data!$D:$D,Data!$A:$A,$B37,Data!$C:$C,L$36,Data!$B:$B,$B$34) -> 0.1837844582 | M37: =SUMIFS(Data!$D:$D,Data!$A:$A,$B37,Data!$C:$C,M$36,Data!$B:$B,$B$34) -> 0.103696993
B38: Victorian Transmission System | C38: =SUMIFS(Data!$D:$D,Data!$A:$A,$B38,Data!$C:$C,C$36,Data!$B:$B,$B$34) -> 0.1080279533 | D38: =SUMIFS(Data!$D:$D,Data!$A:$A,$B38,Data!$C:$C,D$36,Data!$B:$B,$B$34) -> 0.0924959492 | E38: =SUMIFS(Data!$D:$D,Data!$A:$A,$B38,Data!$C:$C,E$36,Data!$B:$B,$B$34) -> 0.1242991924 | F38: =SUMIFS(Data!$D:$D,Data!$A:$A,$B38,Data!$C:$C,F$36,Data!$B:$B,$B$34) -> 0.1142052284 | G38: =SUMIFS(Data!$D:$D,Data!$A:$A,$B38,Data!$C:$C,G$36,Data!$B:$B,$B$34) -> 0.04674735872 | H38: =SUMIFS(Data!$D:$D,Data!$A:$A,$B38,Data!$C:$C,H$36,Data!$B:$B,$B$34) -> 0.05022036068 | I38: =SUMIFS(Data!$D:$D,Data!$A:$A,$B38,Data!$C:$C,I$36,Data!$B:$B,$B$34) -> 0.02946284578 | J38: =SUMIFS(Data!$D:$D,Data!$A:$A,$B38,Data!$C:$C,J$36,Data!$B:$B,$B$34) -> 0.08486818754 | K38: =SUMIFS(Data!$D:$D,Data!$A:$A,$B38,Data!$C:$C,K$36,Data!$B:$B,$B$34) -> 0.1845118743 | L38: =SUMIFS(Data!$D:$D,Data!$A:$A,$B38,Data!$C:$C,L$36,Data!$B:$B,$B$34) -> 0.05277751089 | M38: =SUMIFS(Data!$D:$D,Data!$A:$A,$B38,Data!$C:$C,M$36,Data!$B:$B,$B$34) -> 0.008441089631
B39: Roma Brisbane Pipeline | C39: =SUMIFS(Data!$D:$D,Data!$A:$A,$B39,Data!$C:$C,C$36,Data!$B:$B,$B$34) -> 0.08210303195 | D39: =SUMIFS(Data!$D:$D,Data!$A:$A,$B39,Data!$C:$C,D$36,Data!$B:$B,$B$34) -> 0.07035355375 | E39: =SUMIFS(Data!$D:$D,Data!$A:$A,$B39,Data!$C:$C,E$36,Data!$B:$B,$B$34) -> 0.1236349808 | F39: =SUMIFS(Data!$D:$D,Data!$A:$A,$B39,Data!$C:$C,F$36,Data!$B:$B,$B$34) -> 0.1313650117 | G39: =SUMIFS(Data!$D:$D,Data!$A:$A,$B39,Data!$C:$C,G$36,Data!$B:$B,$B$34) -> 0.1350935923 | H39: =SUMIFS(Data!$D:$D,Data!$A:$A,$B39,Data!$C:$C,H$36,Data!$B:$B,$B$34) -> 0.09524456246 | I39: =SUMIFS(Data!$D:$D,Data!$A:$A,$B39,Data!$C:$C,I$36,Data!$B:$B,$B$34) -> 0.1131555322 | J39: =SUMIFS(Data!$D:$D,Data!$A:$A,$B39,Data!$C:$C,J$36,Data!$B:$B,$B$34) -> 0.1044065872 | K39: =SUMIFS(Data!$D:$D,Data!$A:$A,$B39,Data!$C:$C,K$36,Data!$B:$B,$B$34) -> 0.157630239 | L39: =SUMIFS(Data!$D:$D,Data!$A:$A,$B39,Data!$C:$C,L$36,Data!$B:$B,$B$34) -> 0.2313573435 | M39: =SUMIFS(Data!$D:$D,Data!$A:$A,$B39,Data!$C:$C,M$36,Data!$B:$B,$B$34) -> 0.06992564368
B40: Average | C40: =AVERAGE(C37:C39) -> 0.08348509455 | D40: =AVERAGE(D37:D39) -> 0.07321752989 | E40: 0.1348653799 | F40: 0.1374935731 | G40: 0.1276387202 | H40: 0.112992321 | I40: 0.1109263748 | J40: 0.1279664524 | K40: 0.1586641962 | L40: 0.1559731042 | M40: 0.06068790876
B42: =IF(C30 = "Inclusive", "ROE - Allowed nominal return on equity","ROE - Allowed real return on equity") -> ROE - Allowed real return on equity | C42: 2014 | D42: 2015 | E42: 2016 | F42: 2017 | G42: 2018 | H42: 2019 | I42: 2020 | J42: 2021 | K42: 2022 | L42: 2023 | M42: 2024
B43: Amadeus Gas Pipeline | C43: =IF($C$30="Exclusive",SUMIFS(Data!$D:$D,Data!$A:$A,$B43,Data!$B:$B,"Allowed real return on equity",Data!$C:$C,C$42),SUMIFS(Data!$D:$D,Data!$A:$A,$B43,Data!$B:$B,"Allowed nominal return on equity",Data!$C:$C,C$42)) -> 0.0758654315 | D43: =IF($C$30="Exclusive",SUMIFS(Data!$D:$D,Data!$A:$A,$B43,Data!$B:$B,"Allowed real return on equity",Data!$C:$C,D$42),SUMIFS(Data!$D:$D,Data!$A:$A,$B43,Data!$B:$B,"Allowed nominal return on equity",Data!$C:$C,D$42)) -> 0.0758654315 | E43: =IF($C$30="Exclusive",SUMIFS(Data!$D:$D,Data!$A:$A,$B43,Data!$B:$B,"Allowed real return on equity",Data!$C:$C,E$42),SUMIFS(Data!$D:$D,Data!$A:$A,$B43,Data!$B:$B,"Allowed nominal return on equity",Data!$C:$C,E$42)) -> 0.0758654315 | F43: =IF($C$30="Exclusive",SUMIFS(Data!$D:$D,Data!$A:$A,$B43,Data!$B:$B,"Allowed real return on equity",Data!$C:$C,F$42),SUMIFS(Data!$D:$D,Data!$A:$A,$B43,Data!$B:$B,"Allowed nominal return on equity",Data!$C:$C,F$42)) -> 0.04599158336 | G43: =IF($C$30="Exclusive",SUMIFS(Data!$D:$D,Data!$A:$A,$B43,Data!$B:$B,"Allowed real return on equity",Data!$C:$C,G$42),SUMIFS(Data!$D:$D,Data!$A:$A,$B43,Data!$B:$B,"Allowed nominal return on equity",Data!$C:$C,G$42)) -> 0.04599158336 | H43: =IF($C$30="Exclusive",SUMIFS(Data!$D:$D,Data!$A:$A,$B43,Data!$B:$B,"Allowed real return on equity",Data!$C:$C,H$42),SUMIFS(Data!$D:$D,Data!$A:$A,$B43,Data!$B:$B,"Allowed nominal return on equity",Data!$C:$C,H$42)) -> 0.04599158336 | I43: =IF($C$30="Exclusive",SUMIFS(Data!$D:$D,Data!$A:$A,$B43,Data!$B:$B,"Allowed real return on equity",Data!$C:$C,I$42),SUMIFS(Data!$D:$D,Data!$A:$A,$B43,Data!$B:$B,"Allowed nominal return on equity",Data!$C:$C,I$42)) -> 0.04599158336 | J43: =IF($C$30="Exclusive",SUMIFS(Data!$D:$D,Data!$A:$A,$B43,Data!$B:$B,"Allowed real return on equity",Data!$C:$C,J$42),SUMIFS(Data!$D:$D,Data!$A:$A,$B43,Data!$B:$B,"Allowed nominal return on equity",Data!$C:$C,J$42)) -> 0.04599158336 | K43: =IF($C$30="Exclusive",SUMIFS(Data!$D:$D,Data!$A:$A,$B43,Data!$B:$B,"Allowed real return on equity",Data!$C:$C,K$42),SUMIFS(Data!$D:$D,Data!$A:$A,$B43,Data!$B:$B,"Allowed nominal return on equity",Data!$C:$C,K$42)) -> 0.02941378797 | L43: =IF($C$30="Exclusive",SUMIFS(Data!$D:$D,Data!$A:$A,$B43,Data!$B:$B,"Allowed real return on equity",Data!$C:$C,L$42),SUMIFS(Data!$D:$D,Data!$A:$A,$B43,Data!$B:$B,"Allowed nominal return on equity",Data!$C:$C,L$42)) -> 0.02941378797 | M43: =IF($C$30="Exclusive",SUMIFS(Data!$D:$D,Data!$A:$A,$B43,Data!$B:$B,"Allowed real return on equity",Data!$C:$C,M$42),SUMIFS(Data!$D:$D,Data!$A:$A,$B43,Data!$B:$B,"Allowed nominal return on equity",Data!$C:$C,M$42)) -> 0.02941378797
B44: Victorian Transmission System | C44: =IF($C$30="Exclusive",SUMIFS(Data!$D:$D,Data!$A:$A,$B44,Data!$B:$B,"Allowed real return on equity",Data!$C:$C,C$42),SUMIFS(Data!$D:$D,Data!$A:$A,$B44,Data!$B:$B,"Allowed nominal return on equity",Data!$C:$C,C$42)) -> 0.05385268293 | D44: =IF($C$30="Exclusive",SUMIFS(Data!$D:$D,Data!$A:$A,$B44,Data!$B:$B,"Allowed real return on equity",Data!$C:$C,D$42),SUMIFS(Data!$D:$D,Data!$A:$A,$B44,Data!$B:$B,"Allowed nominal return on equity",Data!$C:$C,D$42)) -> 0.05385268293 | E44: =IF($C$30="Exclusive",SUMIFS(Data!$D:$D,Data!$A:$A,$B44,Data!$B:$B,"Allowed real return on equity",Data!$C:$C,E$42),SUMIFS(Data!$D:$D,Data!$A:$A,$B44,Data!$B:$B,"Allowed nominal return on equity",Data!$C:$C,E$42)) -> 0.05385268293 | F44: =IF($C$30="Exclusive",SUMIFS(Data!$D:$D,Data!$A:$A,$B44,Data!$B:$B,"Allowed real return on equity",Data!$C:$C,F$42),SUMIFS(Data!$D:$D,Data!$A:$A,$B44,Data!$B:$B,"Allowed nominal return on equity",Data!$C:$C,F$42)) -> 0.05385268293 | G44: =IF($C$30="Exclusive",SUMIFS(Data!$D:$D,Data!$A:$A,$B44,Data!$B:$B,"Allowed real return on equity",Data!$C:$C,G$42),SUMIFS(Data!$D:$D,Data!$A:$A,$B44,Data!$B:$B,"Allowed nominal return on equity",Data!$C:$C,G$42)) -> 0.04734066535 | H44: =IF($C$30="Exclusive",SUMIFS(Data!$D:$D,Data!$A:$A,$B44,Data!$B:$B,"Allowed real return on equity",Data!$C:$C,H$42),SUMIFS(Data!$D:$D,Data!$A:$A,$B44,Data!$B:$B,"Allowed nominal return on equity",Data!$C:$C,H$42)) -> 0.04734066535 | I44: =IF($C$30="Exclusive",SUMIFS(Data!$D:$D,Data!$A:$A,$B44,Data!$B:$B,"Allowed real return on equity",Data!$C:$C,I$42),SUMIFS(Data!$D:$D,Data!$A:$A,$B44,Data!$B:$B,"Allowed nominal return on equity",Data!$C:$C,I$42)) -> 0.04734066535 | J44: =IF($C$30="Exclusive",SUMIFS(Data!$D:$D,Data!$A:$A,$B44,Data!$B:$B,"Allowed real return on equity",Data!$C:$C,J$42),SUMIFS(Data!$D:$D,Data!$A:$A,$B44,Data!$B:$B,"Allowed nominal return on equity",Data!$C:$C,J$42)) -> 0.04734066535 | K44: =IF($C$30="Exclusive",SUMIFS(Data!$D:$D,Data!$A:$A,$B44,Data!$B:$B,"Allowed real return on equity",Data!$C:$C,K$42),SUMIFS(Data!$D:$D,Data!$A:$A,$B44,Data!$B:$B,"Allowed nominal return on equity",Data!$C:$C,K$42)) -> 0.04734066535 | L44: =IF($C$30="Exclusive",SUMIFS(Data!$D:$D,Data!$A:$A,$B44,Data!$B:$B,"Allowed real return on equity",Data!$C:$C,L$42),SUMIFS(Data!$D:$D,Data!$A:$A,$B44,Data!$B:$B,"Allowed nominal return on equity",Data!$C:$C,L$42)) -> 0.04065436938 | M44: =IF($C$30="Exclusive",SUMIFS(Data!$D:$D,Data!$A:$A,$B44,Data!$B:$B,"Allowed real return on equity",Data!$C:$C,M$42),SUMIFS(Data!$D:$D,Data!$A:$A,$B44,Data!$B:$B,"Allowed nominal return on equity",Data!$C:$C,M$42)) -> 0.04065436938
B45: Roma Brisbane Pipeline | C45: =IF($C$30="Exclusive",SUMIFS(Data!$D:$D,Data!$A:$A,$B45,Data!$B:$B,"Allowed real return on equity",Data!$C:$C,C$42),SUMIFS(Data!$D:$D,Data!$A:$A,$B45,Data!$B:$B,"Allowed nominal return on equity",Data!$C:$C,C$42)) -> 0.05070697221 | D45: =IF($C$30="Exclusive",SUMIFS(Data!$D:$D,Data!$A:$A,$B45,Data!$B:$B,"Allowed real return on equity",Data!$C:$C,D$42),SUMIFS(Data!$D:$D,Data!$A:$A,$B45,Data!$B:$B,"Allowed nominal return on equity",Data!$C:$C,D$42)) -> 0.05070697221 | E45: =IF($C$30="Exclusive",SUMIFS(Data!$D:$D,Data!$A:$A,$B45,Data!$B:$B,"Allowed real return on equity",Data!$C:$C,E$42),SUMIFS(Data!$D:$D,Data!$A:$A,$B45,Data!$B:$B,"Allowed nominal return on equity",Data!$C:$C,E$42)) -> 0.05070697221 | F45: =IF($C$30="Exclusive",SUMIFS(Data!$D:$D,Data!$A:$A,$B45,Data!$B:$B,"Allowed real return on equity",Data!$C:$C,F$42),SUMIFS(Data!$D:$D,Data!$A:$A,$B45,Data!$B:$B,"Allowed nominal return on equity",Data!$C:$C,F$42)) -> 0.05070697221 | G45: =IF($C$30="Exclusive",SUMIFS(Data!$D:$D,Data!$A:$A,$B45,Data!$B:$B,"Allowed real return on equity",Data!$C:$C,G$42),SUMIFS(Data!$D:$D,Data!$A:$A,$B45,Data!$B:$B,"Allowed nominal return on equity",Data!$C:$C,G$42)) -> 0.0446681078 | H45: =IF($C$30="Exclusive",SUMIFS(Data!$D:$D,Data!$A:$A,$B45,Data!$B:$B,"Allowed real return on equity",Data!$C:$C,H$42),SUMIFS(Data!$D:$D,Data!$A:$A,$B45,Data!$B:$B,"Allowed nominal return on equity",Data!$C:$C,H$42)) -> 0.0446681078 | I45: =IF($C$30="Exclusive",SUMIFS(Data!$D:$D,Data!$A:$A,$B45,Data!$B:$B,"Allowed real return on equity",Data!$C:$C,I$42),SUMIFS(Data!$D:$D,Data!$A:$A,$B45,Data!$B:$B,"Allowed nominal return on equity",Data!$C:$C,I$42)) -> 0.0446681078 | J45: =IF($C$30="Exclusive",SUMIFS(Data!$D:$D,Data!$A:$A,$B45,Data!$B:$B,"Allowed real return on equity",Data!$C:$C,J$42),SUMIFS(Data!$D:$D,Data!$A:$A,$B45,Data!$B:$B,"Allowed nominal return on equity",Data!$C:$C,J$42)) -> 0.0446681078 | K45: =IF($C$30="Exclusive",SUMIFS(Data!$D:$D,Data!$A:$A,$B45,Data!$B:$B,"Allowed real return on equity",Data!$C:$C,K$42),SUMIFS(Data!$D:$D,Data!$A:$A,$B45,Data!$B:$B,"Allowed nominal return on equity",Data!$C:$C,K$42)) -> 0.0446681078 | L45: =IF($C$30="Exclusive",SUMIFS(Data!$D:$D,Data!$A:$A,$B45,Data!$B:$B,"Allowed real return on equity",Data!$C:$C,L$42),SUMIFS(Data!$D:$D,Data!$A:$A,$B45,Data!$B:$B,"Allowed nominal return on equity",Data!$C:$C,L$42)) -> 0.0305250819 | M45: =IF($C$30="Exclusive",SUMIFS(Data!$D:$D,Data!$A:$A,$B45,Data!$B:$B,"Allowed real return on equity",Data!$C:$C,M$42),SUMIFS(Data!$D:$D,Data!$A:$A,$B45,Data!$B:$B,"Allowed nominal return on equity",Data!$C:$C,M$42)) -> 0.0305250819
B46: Average | C46: =AVERAGE(C43:C45) -> 0.06014169554 | D46: =AVERAGE(D43:D45) -> 0.06014169554 | E46: 0.06014169554 | F46: 0.05018374617 | G46: 0.04600011884 | H46: 0.04600011884 | I46: 0.04600011884 | J46: 0.04600011884 | K46: 0.04047418704 | L46: 0.03353107975 | M46: 0.03353107975

Sheet Profitability - Gas Tx
B2: Gas TNSP Financial performance - Detailed calculations
B4: Network Service Provider | C4: Amadeus Gas Pipeline
B6: Returns from indexation of the RAB | C6: Exclusive
B8: Returns from incentive scheme payments | C8: Inclusive
B10: Summary
B12: Returns on assets | C12: 2014 | D12: 2015 | E12: 2016 | F12: 2017 | G12: 2018 | H12: 2019 | I12: 2020 | J12: 2021 | K12: 2022 | L12: 2023 | M12: 2024
B13: Return on Assets | C13: =IF($C$4="Amadeus Gas Pipeline","",IF($C$6="Inclusive", C66/C80, C66/C81)) ->  | K13: =IF(AND($C$4="Victorian Transmission System",$C$6="Inclusive"),K66/K80,IF(AND($C$4="Victorian Transmission System",$C$6="Exclusive"),K66/K81,"")) -> 
B14: Allowed rate of return | C14: =IF($C$6="Exclusive",SUMIFS(Data!$D:$D,Data!$A:$A,'Profitability - Gas Tx'!$C$4,Data!$B:$B,"Allowed real rate of return",Data!$C:$C,'Profitability - Gas Tx'!C$12),SUMIFS(Data!$D:$D,Data!$A:$A,'Profitability - Gas Tx'!$C$4,Data!$B:$B,"Allowed nominal rate of return",Data!$C:$C,'Profitability - Gas Tx'!C$12)) -> 0.08116865507 | D14: =IF($C$6="Exclusive",SUMIFS(Data!$D:$D,Data!$A:$A,'Profitability - Gas Tx'!$C$4,Data!$B:$B,"Allowed real rate of return",Data!$C:$C,'Profitability - Gas Tx'!D$12),SUMIFS(Data!$D:$D,Data!$A:$A,'Profitability - Gas Tx'!$C$4,Data!$B:$B,"Allowed nominal rate of return",Data!$C:$C,'Profitability - Gas Tx'!D$12)) -> 0.08116865507 | E14: =IF($C$6="Exclusive",SUMIFS(Data!$D:$D,Data!$A:$A,'Profitability - Gas Tx'!$C$4,Data!$B:$B,"Allowed real rate of return",Data!$C:$C,'Profitability - Gas Tx'!E$12),SUMIFS(Data!$D:$D,Data!$A:$A,'Profitability - Gas Tx'!$C$4,Data!$B:$B,"Allowed nominal rate of return",Data!$C:$C,'Profitability - Gas Tx'!E$12)) -> 0.08116865507 | F14: =IF($C$6="Exclusive",SUMIFS(Data!$D:$D,Data!$A:$A,'Profitability - Gas Tx'!$C$4,Data!$B:$B,"Allowed real rate of return",Data!$C:$C,'Profitability - Gas Tx'!F$12),SUMIFS(Data!$D:$D,Data!$A:$A,'Profitability - Gas Tx'!$C$4,Data!$B:$B,"Allowed nominal rate of return",Data!$C:$C,'Profitability - Gas Tx'!F$12)) -> 0.04130022821 | G14: =IF($C$6="Exclusive",SUMIFS(Data!$D:$D,Data!$A:$A,'Profitability - Gas Tx'!$C$4,Data!$B:$B,"Allowed real rate of return",Data!$C:$C,'Profitability - Gas Tx'!G$12),SUMIFS(Data!$D:$D,Data!$A:$A,'Profitability - Gas Tx'!$C$4,Data!$B:$B,"Allowed nominal rate of return",Data!$C:$C,'Profitability - Gas Tx'!G$12)) -> 0.04102183381 | H14: =IF($C$6="Exclusive",SUMIFS(Data!$D:$D,Data!$A:$A,'Profitability - Gas Tx'!$C$4,Data!$B:$B,"Allowed real rate of return",Data!$C:$C,'Profitability - Gas Tx'!H$12),SUMIFS(Data!$D:$D,Data!$A:$A,'Profitability - Gas Tx'!$C$4,Data!$B:$B,"Allowed nominal rate of return",Data!$C:$C,'Profitability - Gas Tx'!H$12)) -> 0.04039566703 | I14: =IF($C$6="Exclusive",SUMIFS(Data!$D:$D,Data!$A:$A,'Profitability - Gas Tx'!$C$4,Data!$B:$B,"Allowed real rate of return",Data!$C:$C,'Profitability - Gas Tx'!I$12),SUMIFS(Data!$D:$D,Data!$A:$A,'Profitability - Gas Tx'!$C$4,Data!$B:$B,"Allowed nominal rate of return",Data!$C:$C,'Profitability - Gas Tx'!I$12)) -> 0.03963353118 | J14: =IF($C$6="Exclusive",SUMIFS(Data!$D:$D,Data!$A:$A,'Profitability - Gas Tx'!$C$4,Data!$B:$B,"Allowed real rate of return",Data!$C:$C,'Profitability - Gas Tx'!J$12),SUMIFS(Data!$D:$D,Data!$A:$A,'Profitability - Gas Tx'!$C$4,Data!$B:$B,"Allowed nominal rate of return",Data!$C:$C,'Profitability - Gas Tx'!J$12)) -> 0.03804313846 | K14: =IF($C$6="Exclusive",SUMIFS(Data!$D:$D,Data!$A:$A,'Profitability - Gas Tx'!$C$4,Data!$B:$B,"Allowed real rate of return",Data!$C:$C,'Profitability - Gas Tx'!K$12),SUMIFS(Data!$D:$D,Data!$A:$A,'Profitability - Gas Tx'!$C$4,Data!$B:$B,"Allowed nominal rate of return",Data!$C:$C,'Profitability - Gas Tx'!K$12)) -> 0.03020907574 | L14: =IF($C$6="Exclusive",SUMIFS(Data!$D:$D,Data!$A:$A,'Profitability - Gas Tx'!$C$4,Data!$B:$B,"Allowed real rate of return",Data!$C:$C,'Profitability - Gas Tx'!L$12),SUMIFS(Data!$D:$D,Data!$A:$A,'Profitability - Gas Tx'!$C$4,Data!$B:$B,"Allowed nominal rate of return",Data!$C:$C,'Profitability - Gas Tx'!L$12)) -> 0.0292884221 | M14: =IF($C$6="Exclusive",SUMIFS(Data!$D:$D,Data!$A:$A,'Profitability - Gas Tx'!$C$4,Data!$B:$B,"Allowed real rate of return",Data!$C:$C,'Profitability - Gas Tx'!M$12),SUMIFS(Data!$D:$D,Data!$A:$A,'Profitability - Gas Tx'!$C$4,Data!$B:$B,"Allowed nominal rate of return",Data!$C:$C,'Profitability - Gas Tx'!M$12)) -> 0.02974673495
B15: Difference | C15: =IFERROR(C13-C14,"") -> 
B17: Source: Post tax revenue model - Pre-tax real WACC - 2014 to 2024
B20: Return on regulated equity | C20: 2014 | D20: 2015 | E20: 2016 | F20: 2017 | G20: 2018 | H20: 2019 | I20: 2020 | J20: 2021 | K20: 2022 | L20: 2023 | M20: 2024
B21: Return on regulated equity | C21: =IF($C$6="Exclusive",SUMIFS(Data!$D:$D,Data!$A:$A,$C$4,Data!$B:$B,"Real return on regulated equity",Data!$C:$C,C$12),SUMIFS(Data!$D:$D,Data!$A:$A,$C$4,Data!$B:$B,"Nominal return on regulated equity",Data!$C:$C,C$12)) -> 0.06032429841 | D21: =IF($C$6="Exclusive",SUMIFS(Data!$D:$D,Data!$A:$A,$C$4,Data!$B:$B,"Real return on regulated equity",Data!$C:$C,D$12),SUMIFS(Data!$D:$D,Data!$A:$A,$C$4,Data!$B:$B,"Nominal return on regulated equity",Data!$C:$C,D$12)) -> 0.05680308673 | E21: =IF($C$6="Exclusive",SUMIFS(Data!$D:$D,Data!$A:$A,$C$4,Data!$B:$B,"Real return on regulated equity",Data!$C:$C,E$12),SUMIFS(Data!$D:$D,Data!$A:$A,$C$4,Data!$B:$B,"Nominal return on regulated equity",Data!$C:$C,E$12)) -> 0.1566619666 | F21: =IF($C$6="Exclusive",SUMIFS(Data!$D:$D,Data!$A:$A,$C$4,Data!$B:$B,"Real return on regulated equity",Data!$C:$C,F$12),SUMIFS(Data!$D:$D,Data!$A:$A,$C$4,Data!$B:$B,"Nominal return on regulated equity",Data!$C:$C,F$12)) -> 0.1669104792 | G21: =IF($C$6="Exclusive",SUMIFS(Data!$D:$D,Data!$A:$A,$C$4,Data!$B:$B,"Real return on regulated equity",Data!$C:$C,G$12),SUMIFS(Data!$D:$D,Data!$A:$A,$C$4,Data!$B:$B,"Nominal return on regulated equity",Data!$C:$C,G$12)) -> 0.2010752096 | H21: =IF($C$6="Exclusive",SUMIFS(Data!$D:$D,Data!$A:$A,$C$4,Data!$B:$B,"Real return on regulated equity",Data!$C:$C,H$12),SUMIFS(Data!$D:$D,Data!$A:$A,$C$4,Data!$B:$B,"Nominal return on regulated equity",Data!$C:$C,H$12)) -> 0.19351204 | I21: =IF($C$6="Exclusive",SUMIFS(Data!$D:$D,Data!$A:$A,$C$4,Data!$B:$B,"Real return on regulated equity",Data!$C:$C,I$12),SUMIFS(Data!$D:$D,Data!$A:$A,$C$4,Data!$B:$B,"Nominal return on regulated equity",Data!$C:$C,I$12)) -> 0.1901607464 | J21: =IF($C$6="Exclusive",SUMIFS(Data!$D:$D,Data!$A:$A,$C$4,Data!$B:$B,"Real return on regulated equity",Data!$C:$C,J$12),SUMIFS(Data!$D:$D,Data!$A:$A,$C$4,Data!$B:$B,"Nominal return on regulated equity",Data!$C:$C,J$12)) -> 0.1946245824 | K21: =IF($C$6="Exclusive",SUMIFS(Data!$D:$D,Data!$A:$A,$C$4,Data!$B:$B,"Real return on regulated equity",Data!$C:$C,K$12),SUMIFS(Data!$D:$D,Data!$A:$A,$C$4,Data!$B:$B,"Nominal return on regulated equity",Data!$C:$C,K$12)) -> 0.1338504753 | L21: =IF($C$6="Exclusive",SUMIFS(Data!$D:$D,Data!$A:$A,$C$4,Data!$B:$B,"Real return on regulated equity",Data!$C:$C,L$12),SUMIFS(Data!$D:$D,Data!$A:$A,$C$4,Data!$B:$B,"Nominal return on regulated equity",Data!$C:$C,L$12)) -> 0.1837844582 | M21: =IF($C$6="Exclusive",SUMIFS(Data!$D:$D,Data!$A:$A,$C$4,Data!$B:$B,"Real return on regulated equity",Data!$C:$C,M$12),SUMIFS(Data!$D:$D,Data!$A:$A,$C$4,Data!$B:$B,"Nominal return on regulated equity",Data!$C:$C,M$12)) -> 0.103696993
B22: Allowed return on regulated equity | C22: =IF($C$6="Exclusive",SUMIFS(Data!$D:$D,Data!$A:$A,'Profitability - Gas Tx'!$C$4,Data!$B:$B,"Allowed real return on equity",Data!$C:$C,C$20),SUMIFS(Data!$D:$D,Data!$A:$A,$C$4,Data!$B:$B,"Allowed nominal return on equity",Data!$C:$C,C$20)) -> 0.0758654315 | D22: =IF($C$6="Exclusive",SUMIFS(Data!$D:$D,Data!$A:$A,'Profitability - Gas Tx'!$C$4,Data!$B:$B,"Allowed real return on equity",Data!$C:$C,D$20),SUMIFS(Data!$D:$D,Data!$A:$A,$C$4,Data!$B:$B,"Allowed nominal return on equity",Data!$C:$C,D$20)) -> 0.0758654315 | E22: =IF($C$6="Exclusive",SUMIFS(Data!$D:$D,Data!$A:$A,'Profitability - Gas Tx'!$C$4,Data!$B:$B,"Allowed real return on equity",Data!$C:$C,E$20),SUMIFS(Data!$D:$D,Data!$A:$A,$C$4,Data!$B:$B,"Allowed nominal return on equity",Data!$C:$C,E$20)) -> 0.0758654315 | F22: =IF($C$6="Exclusive",SUMIFS(Data!$D:$D,Data!$A:$A,'Profitability - Gas Tx'!$C$4,Data!$B:$B,"Allowed real return on equity",Data!$C:$C,F$20),SUMIFS(Data!$D:$D,Data!$A:$A,$C$4,Data!$B:$B,"Allowed nominal return on equity",Data!$C:$C,F$20)) -> 0.04599158336 | G22: =IF($C$6="Exclusive",SUMIFS(Data!$D:$D,Data!$A:$A,'Profitability - Gas Tx'!$C$4,Data!$B:$B,"Allowed real return on equity",Data!$C:$C,G$20),SUMIFS(Data!$D:$D,Data!$A:$A,$C$4,Data!$B:$B,"Allowed nominal return on equity",Data!$C:$C,G$20)) -> 0.04599158336 | H22: =IF($C$6="Exclusive",SUMIFS(Data!$D:$D,Data!$A:$A,'Profitability - Gas Tx'!$C$4,Data!$B:$B,"Allowed real return on equity",Data!$C:$C,H$20),SUMIFS(Data!$D:$D,Data!$A:$A,$C$4,Data!$B:$B,"Allowed nominal return on equity",Data!$C:$C,H$20)) -> 0.04599158336 | I22: =IF($C$6="Exclusive",SUMIFS(Data!$D:$D,Data!$A:$A,'Profitability - Gas Tx'!$C$4,Data!$B:$B,"Allowed real return on equity",Data!$C:$C,I$20),SUMIFS(Data!$D:$D,Data!$A:$A,$C$4,Data!$B:$B,"Allowed nominal return on equity",Data!$C:$C,I$20)) -> 0.04599158336 | J22: =IF($C$6="Exclusive",SUMIFS(Data!$D:$D,Data!$A:$A,'Profitability - Gas Tx'!$C$4,Data!$B:$B,"Allowed real return on equity",Data!$C:$C,J$20),SUMIFS(Data!$D:$D,Data!$A:$A,$C$4,Data!$B:$B,"Allowed nominal return on equity",Data!$C:$C,J$20)) -> 0.04599158336 | K22: =IF($C$6="Exclusive",SUMIFS(Data!$D:$D,Data!$A:$A,'Profitability - Gas Tx'!$C$4,Data!$B:$B,"Allowed real return on equity",Data!$C:$C,K$20),SUMIFS(Data!$D:$D,Data!$A:$A,$C$4,Data!$B:$B,"Allowed nominal return on equity",Data!$C:$C,K$20)) -> 0.02941378797 | L22: =IF($C$6="Exclusive",SUMIFS(Data!$D:$D,Data!$A:$A,'Profitability - Gas Tx'!$C$4,Data!$B:$B,"Allowed real return on equity",Data!$C:$C,L$20),SUMIFS(Data!$D:$D,Data!$A:$A,$C$4,Data!$B:$B,"Allowed nominal return on equity",Data!$C:$C,L$20)) -> 0.02941378797 | M22: =IF($C$6="Exclusive",SUMIFS(Data!$D:$D,Data!$A:$A,'Profitability - Gas Tx'!$C$4,Data!$B:$B,"Allowed real return on equity",Data!$C:$C,M$20),SUMIFS(Data!$D:$D,Data!$A:$A,$C$4,Data!$B:$B,"Allowed nominal return on equity",Data!$C:$C,M$20)) -> 0.02941378797
B23: Difference | C23: =C21-C22 -> -0.01554113309 | D23: =D21-D22 -> -0.01906234477 | E23: 0.08079653508 | F23: 0.1209188958 | G23: 0.1550836262 | H23: =H21-H22 -> 0.1475204566 | I23: 0.144169163 | J23: 0.1486329991 | K23: =K21-K22 -> 0.1044366874 | L23: 0.1543706702 | M23: 0.07428320498
B25: Source: Post tax revenue model - Post tax real return on equity - 2014 to 2024
B28: Detailed calculations
B30: Revenue | C30: 2014 | D30: 2015 | E30: 2016 | F30: 2017 | G30: 2018 | H30: 2019 | I30: 2020 | J30: 2021 | K30: 2022 | L30: 2023 | M30: 2024
B31: Revenue | C31: =SUMIFS(Data!$D:$D,Data!$A:$A,'Profitability - Gas Tx'!$C$4,Data!$B:$B,'Profitability - Gas Tx'!$B31,Data!$C:$C,'Profitability - Gas Tx'!C$30)-IF($C$8="Exclusive",C$74,0) -> 0 | D31: =SUMIFS(Data!$D:$D,Data!$A:$A,'Profitability - Gas Tx'!$C$4,Data!$B:$B,'Profitability - Gas Tx'!$B31,Data!$C:$C,'Profitability - Gas Tx'!D$30)-IF($C$8="Exclusive",D$74,0) -> 0 | E31: =SUMIFS(Data!$D:$D,Data!$A:$A,'Profitability - Gas Tx'!$C$4,Data!$B:$B,'Profitability - Gas Tx'!$B31,Data!$C:$C,'Profitability - Gas Tx'!E$30)-IF($C$8="Exclusive",E$74,0) -> 0 | F31: =SUMIFS(Data!$D:$D,Data!$A:$A,'Profitability - Gas Tx'!$C$4,Data!$B:$B,'Profitability - Gas Tx'!$B31,Data!$C:$C,'Profitability - Gas Tx'!F$30)-IF($C$8="Exclusive",F$74,0) -> 0 | G31: =SUMIFS(Data!$D:$D,Data!$A:$A,'Profitability - Gas Tx'!$C$4,Data!$B:$B,'Profitability - Gas Tx'!$B31,Data!$C:$C,'Profitability - Gas Tx'!G$30)-IF($C$8="Exclusive",G$74,0) -> 0 | H31: =SUMIFS(Data!$D:$D,Data!$A:$A,'Profitability - Gas Tx'!$C$4,Data!$B:$B,'Profitability - Gas Tx'!$B31,Data!$C:$C,'Profitability - Gas Tx'!H$30)-IF($C$8="Exclusive",H$74,0) -> 0 | I31: =SUMIFS(Data!$D:$D,Data!$A:$A,'Profitability - Gas Tx'!$C$4,Data!$B:$B,'Profitability - Gas Tx'!$B31,Data!$C:$C,'Profitability - Gas Tx'!I$30)-IF($C$8="Exclusive",I$74,0) -> 0 | J31: =SUMIFS(Data!$D:$D,Data!$A:$A,'Profitability - Gas Tx'!$C$4,Data!$B:$B,'Profitability - Gas Tx'!$B31,Data!$C:$C,'Profitability - Gas Tx'!J$30)-IF($C$8="Exclusive",J$74,0) -> 0 | K31: =SUMIFS(Data!$D:$D,Data!$A:$A,'Profitability - Gas Tx'!$C$4,Data!$B:$B,'Profitability - Gas Tx'!$B31,Data!$C:$C,'Profitability - Gas Tx'!K$30)-IF($C$8="Exclusive",K$74,0) -> 0 | L31: =SUMIFS(Data!$D:$D,Data!$A:$A,'Profitability - Gas Tx'!$C$4,Data!$B:$B,'Profitability - Gas Tx'!$B31,Data!$C:$C,'Profitability - Gas Tx'!L$30)-IF($C$8="Exclusive",L$74,0) -> 0 | M31: =SUMIFS(Data!$D:$D,Data!$A:$A,'Profitability - Gas Tx'!$C$4,Data!$B:$B,'Profitability - Gas Tx'!$B31,Data!$C:$C,'Profitability - Gas Tx'!M$30)-IF($C$8="Exclusive",M$74,0) -> 0
B32: Other Revenue | C32: =SUMIFS(Data!$D:$D,Data!$A:$A,'Profitability - Gas Tx'!$C$4,Data!$B:$B,'Profitability - Gas Tx'!$B32,Data!$C:$C,'Profitability - Gas Tx'!C$30) -> 0 | D32: =SUMIFS(Data!$D:$D,Data!$A:$A,'Profitability - Gas Tx'!$C$4,Data!$B:$B,'Profitability - Gas Tx'!$B32,Data!$C:$C,'Profitability - Gas Tx'!D$30) -> 0 | E32: =SUMIFS(Data!$D:$D,Data!$A:$A,'Profitability - Gas Tx'!$C$4,Data!$B:$B,'Profitability - Gas Tx'!$B32,Data!$C:$C,'Profitability - Gas Tx'!E$30) -> 0 | F32: =SUMIFS(Data!$D:$D,Data!$A:$A,'Profitability - Gas Tx'!$C$4,Data!$B:$B,'Profitability - Gas Tx'!$B32,Data!$C:$C,'Profitability - Gas Tx'!F$30) -> 0 | G32: =SUMIFS(Data!$D:$D,Data!$A:$A,'Profitability - Gas Tx'!$C$4,Data!$B:$B,'Profitability - Gas Tx'!$B32,Data!$C:$C,'Profitability - Gas Tx'!G$30) -> 0 | H32: =SUMIFS(Data!$D:$D,Data!$A:$A,'Profitability - Gas Tx'!$C$4,Data!$B:$B,'Profitability - Gas Tx'!$B32,Data!$C:$C,'Profitability - Gas Tx'!H$30) -> 0 | I32: =SUMIFS(Data!$D:$D,Data!$A:$A,'Profitability - Gas Tx'!$C$4,Data!$B:$B,'Profitability - Gas Tx'!$B32,Data!$C:$C,'Profitability - Gas Tx'!I$30) -> 0 | J32: =SUMIFS(Data!$D:$D,Data!$A:$A,'Profitability - Gas Tx'!$C$4,Data!$B:$B,'Profitability - Gas Tx'!$B32,Data!$C:$C,'Profitability - Gas Tx'!J$30) -> 0 | K32: =SUMIFS(Data!$D:$D,Data!$A:$A,'Profitability - Gas Tx'!$C$4,Data!$B:$B,'Profitability - Gas Tx'!$B32,Data!$C:$C,'Profitability - Gas Tx'!K$30) -> 0 | L32: =SUMIFS(Data!$D:$D,Data!$A:$A,'Profitability - Gas Tx'!$C$4,Data!$B:$B,'Profitability - Gas Tx'!$B32,Data!$C:$C,'Profitability - Gas Tx'!L$30) -> 0 | M32: =SUMIFS(Data!$D:$D,Data!$A:$A,'Profitability - Gas Tx'!$C$4,Data!$B:$B,'Profitability - Gas Tx'!$B32,Data!$C:$C,'Profitability - Gas Tx'!M$30) -> 0
B33: Total revenue | C33: =SUM(C31:C32) -> 0 | D33: =SUM(D31:D32) -> 0 | E33: 0 | F33: 0 | G33: 0 | H33: 0 | I33: 0 | J33: 0 | K33: =SUM(K31:K32) -> 0 | L33: 0 | M33: 0
B35: Source: Annual RIN Financial - Income Statement - 2014 to 2024
B38: Cost of Goods Sold expenditure | C38: 2014 | D38: 2015 | E38: 2016 | F38: 2017 | G38: 2018 | H38: 2019 | I38: 2020 | J38: 2021 | K38: 2022 | L38: 2023 | M38: 2024
B39: Other cost of goods sold expenditure | C39: =SUMIFS(Data!$D:$D,Data!$A:$A,'Profitability - Gas Tx'!$C$4,Data!$B:$B,'Profitability - Gas Tx'!$B39,Data!$C:$C,'Profitability - Gas Tx'!C$38) -> 0 | D39: =SUMIFS(Data!$D:$D,Data!$A:$A,'Profitability - Gas Tx'!$C$4,Data!$B:$B,'Profitability - Gas Tx'!$B39,Data!$C:$C,'Profitability - Gas Tx'!D$38) -> 0 | E39: =SUMIFS(Data!$D:$D,Data!$A:$A,'Profitability - Gas Tx'!$C$4,Data!$B:$B,'Profitability - Gas Tx'!$B39,Data!$C:$C,'Profitability - Gas Tx'!E$38) -> 0 | F39: =SUMIFS(Data!$D:$D,Data!$A:$A,'Profitability - Gas Tx'!$C$4,Data!$B:$B,'Profitability - Gas Tx'!$B39,Data!$C:$C,'Profitability - Gas Tx'!F$38) -> 0 | G39: =SUMIFS(Data!$D:$D,Data!$A:$A,'Profitability - Gas Tx'!$C$4,Data!$B:$B,'Profitability - Gas Tx'!$B39,Data!$C:$C,'Profitability - Gas Tx'!G$38) -> 0 | H39: =SUMIFS(Data!$D:$D,Data!$A:$A,'Profitability - Gas Tx'!$C$4,Data!$B:$B,'Profitability - Gas Tx'!$B39,Data!$C:$C,'Profitability - Gas Tx'!H$38) -> 0 | I39: =SUMIFS(Data!$D:$D,Data!$A:$A,'Profitability - Gas Tx'!$C$4,Data!$B:$B,'Profitability - Gas Tx'!$B39,Data!$C:$C,'Profitability - Gas Tx'!I$38) -> 0 | J39: =SUMIFS(Data!$D:$D,Data!$A:$A,'Profitability - Gas Tx'!$C$4,Data!$B:$B,'Profitability - Gas Tx'!$B39,Data!$C:$C,'Profitability - Gas Tx'!J$38) -> 0 | K39: =SUMIFS(Data!$D:$D,Data!$A:$A,'Profitability - Gas Tx'!$C$4,Data!$B:$B,'Profitability - Gas Tx'!$B39,Data!$C:$C,'Profitability - Gas Tx'!K$38) -> 0 | L39: =SUMIFS(Data!$D:$D,Data!$A:$A,'Profitability - Gas Tx'!$C$4,Data!$B:$B,'Profitability - Gas Tx'!$B39,Data!$C:$C,'Profitability - Gas Tx'!L$38) -> 0 | M39: =SUMIFS(Data!$D:$D,Data!$A:$A,'Profitability - Gas Tx'!$C$4,Data!$B:$B,'Profitability - Gas Tx'!$B39,Data!$C:$C,'Profitability - Gas Tx'!M$38) -> 0
B40: Total costs of goods sold expenditure | C40: =SUM(C39:C39) -> 0 | D40: 0 | E40: 0 | F40: 0 | G40: 0 | H40: 0 | I40: 0 | J40: 0 | K40: =SUM(K39:K39) -> 0 | L40: 0 | M40: 0
B42: Source: Annual RIN Financial - Opex - 2014 to 2024
C45: 2014 | D45: 2015 | E45: 2016 | F45: 2017 | G45: 2018 | H45: 2019 | I45: 2020 | J45: 2021 | K45: 2022 | L45: 2023 | M45: 2024
B46: Total Gross Profit | C46: =C33-C40 -> 0 | D46: =D33-D40 -> 0 | E46: 0 | F46: 0 | G46: 0 | H46: 0 | I46: 0 | J46: 0 | K46: =K33-K40 -> 0 | L46: =L33-L40 -> 0 | M46: =M33-M40 -> 0
B48: Expenditure | C48: 2014 | D48: 2015 | E48: 2016 | F48: 2017 | G48: 2018 | H48: 2019 | I48: 2020 | J48: 2021 | K48: 2022 | L48: 2023 | M48: 2024
B49: Operating expenditure | C49: =SUMIFS(Data!$D:$D,Data!$A:$A,'Profitability - Gas Tx'!$C$4,Data!$B:$B,'Profitability - Gas Tx'!$B49,Data!$C:$C,'Profitability - Gas Tx'!C$48) -> 11412055.45 | D49: =SUMIFS(Data!$D:$D,Data!$A:$A,'Profitability - Gas Tx'!$C$4,Data!$B:$B,'Profitability - Gas Tx'!$B49,Data!$C:$C,'Profitability - Gas Tx'!D$48) -> 11669200.23 | E49: =SUMIFS(Data!$D:$D,Data!$A:$A,'Profitability - Gas Tx'!$C$4,Data!$B:$B,'Profitability - Gas Tx'!$B49,Data!$C:$C,'Profitability - Gas Tx'!E$48) -> 12125176.58 | F49: =SUMIFS(Data!$D:$D,Data!$A:$A,'Profitability - Gas Tx'!$C$4,Data!$B:$B,'Profitability - Gas Tx'!$B49,Data!$C:$C,'Profitability - Gas Tx'!F$48) -> 12221570.51 | G49: =SUMIFS(Data!$D:$D,Data!$A:$A,'Profitability - Gas Tx'!$C$4,Data!$B:$B,'Profitability - Gas Tx'!$B49,Data!$C:$C,'Profitability - Gas Tx'!G$48) -> 11748571.74 | H49: =SUMIFS(Data!$D:$D,Data!$A:$A,'Profitability - Gas Tx'!$C$4,Data!$B:$B,'Profitability - Gas Tx'!$B49,Data!$C:$C,'Profitability - Gas Tx'!H$48) -> 12049037.24 | I49: =SUMIFS(Data!$D:$D,Data!$A:$A,'Profitability - Gas Tx'!$C$4,Data!$B:$B,'Profitability - Gas Tx'!$B49,Data!$C:$C,'Profitability - Gas Tx'!I$48) -> 12198028.39 | J49: =SUMIFS(Data!$D:$D,Data!$A:$A,'Profitability - Gas Tx'!$C$4,Data!$B:$B,'Profitability - Gas Tx'!$B49,Data!$C:$C,'Profitability - Gas Tx'!J$48) -> 10981058.69 | K49: =SUMIFS(Data!$D:$D,Data!$A:$A,'Profitability - Gas Tx'!$C$4,Data!$B:$B,'Profitability - Gas Tx'!$B49,Data!$C:$C,'Profitability - Gas Tx'!K$48) -> 12991294.48 | L49: =SUMIFS(Data!$D:$D,Data!$A:$A,'Profitability - Gas Tx'!$C$4,Data!$B:$B,'Profitability - Gas Tx'!$B49,Data!$C:$C,'Profitability - Gas Tx'!L$48) -> 15616022.4 | M49: =SUMIFS(Data!$D:$D,Data!$A:$A,'Profitability - Gas Tx'!$C$4,Data!$B:$B,'Profitability - Gas Tx'!$B49,Data!$C:$C,'Profitability - Gas Tx'!M$48) -> 14457007.32
B50: Other expenditure | C50: =SUMIFS(Data!$D:$D,Data!$A:$A,'Profitability - Gas Tx'!$C$4,Data!$B:$B,'Profitability - Gas Tx'!$B50,Data!$C:$C,'Profitability - Gas Tx'!C$48) -> 0 | D50: =SUMIFS(Data!$D:$D,Data!$A:$A,'Profitability - Gas Tx'!$C$4,Data!$B:$B,'Profitability - Gas Tx'!$B50,Data!$C:$C,'Profitability - Gas Tx'!D$48) -> 0 | E50: =SUMIFS(Data!$D:$D,Data!$A:$A,'Profitability - Gas Tx'!$C$4,Data!$B:$B,'Profitability - Gas Tx'!$B50,Data!$C:$C,'Profitability - Gas Tx'!E$48) -> 0 | F50: =SUMIFS(Data!$D:$D,Data!$A:$A,'Profitability - Gas Tx'!$C$4,Data!$B:$B,'Profitability - Gas Tx'!$B50,Data!$C:$C,'Profitability - Gas Tx'!F$48) -> 0 | G50: =SUMIFS(Data!$D:$D,Data!$A:$A,'Profitability - Gas Tx'!$C$4,Data!$B:$B,'Profitability - Gas Tx'!$B50,Data!$C:$C,'Profitability - Gas Tx'!G$48) -> 0 | H50: =SUMIFS(Data!$D:$D,Data!$A:$A,'Profitability - Gas Tx'!$C$4,Data!$B:$B,'Profitability - Gas Tx'!$B50,Data!$C:$C,'Profitability - Gas Tx'!H$48) -> 0 | I50: =SUMIFS(Data!$D:$D,Data!$A:$A,'Profitability - Gas Tx'!$C$4,Data!$B:$B,'Profitability - Gas Tx'!$B50,Data!$C:$C,'Profitability - Gas Tx'!I$48) -> 0 | J50: =SUMIFS(Data!$D:$D,Data!$A:$A,'Profitability - Gas Tx'!$C$4,Data!$B:$B,'Profitability - Gas Tx'!$B50,Data!$C:$C,'Profitability - Gas Tx'!J$48) -> 0 | K50: =SUMIFS(Data!$D:$D,Data!$A:$A,'Profitability - Gas Tx'!$C$4,Data!$B:$B,'Profitability - Gas Tx'!$B50,Data!$C:$C,'Profitability - Gas Tx'!K$48) -> 0 | L50: =SUMIFS(Data!$D:$D,Data!$A:$A,'Profitability - Gas Tx'!$C$4,Data!$B:$B,'Profitability - Gas Tx'!$B50,Data!$C:$C,'Profitability - Gas Tx'!L$48) -> 0 | M50: =SUMIFS(Data!$D:$D,Data!$A:$A,'Profitability - Gas Tx'!$C$4,Data!$B:$B,'Profitability - Gas Tx'!$B50,Data!$C:$C,'Profitability - Gas Tx'!M$48) -> 0
B51: Total expenditure | C51: =SUM(C49:C50) -> 11412055.45 | D51: 11669200.23 | E51: 12125176.58 | F51: 12221570.51 | G51: 11748571.74 | H51: 12049037.24 | I51: 12198028.39 | J51: 10981058.69 | K51: 12991294.48 | L51: 15616022.4 | M51: 14457007.32
B52: Forecast operating and maintenance expenditure | C52: =SUMIFS(Data!$D:$D,Data!$A:$A,'Profitability - Gas Tx'!$C$4,Data!$B:$B,'Profitability - Gas Tx'!$B52,Data!$C:$C,'Profitability - Gas Tx'!C$48) -> 14520954.04 | D52: =SUMIFS(Data!$D:$D,Data!$A:$A,'Profitability - Gas Tx'!$C$4,Data!$B:$B,'Profitability - Gas Tx'!$B52,Data!$C:$C,'Profitability - Gas Tx'!D$48) -> 15505760.3 | E52: =SUMIFS(Data!$D:$D,Data!$A:$A,'Profitability - Gas Tx'!$C$4,Data!$B:$B,'Profitability - Gas Tx'!$B52,Data!$C:$C,'Profitability - Gas Tx'!E$48) -> 17303211 | F52: =SUMIFS(Data!$D:$D,Data!$A:$A,'Profitability - Gas Tx'!$C$4,Data!$B:$B,'Profitability - Gas Tx'!$B52,Data!$C:$C,'Profitability - Gas Tx'!F$48) -> 12159581.12 | G52: =SUMIFS(Data!$D:$D,Data!$A:$A,'Profitability - Gas Tx'!$C$4,Data!$B:$B,'Profitability - Gas Tx'!$B52,Data!$C:$C,'Profitability - Gas Tx'!G$48) -> 13406490.86 | H52: =SUMIFS(Data!$D:$D,Data!$A:$A,'Profitability - Gas Tx'!$C$4,Data!$B:$B,'Profitability - Gas Tx'!$B52,Data!$C:$C,'Profitability - Gas Tx'!H$48) -> 14649002.52 | I52: =SUMIFS(Data!$D:$D,Data!$A:$A,'Profitability - Gas Tx'!$C$4,Data!$B:$B,'Profitability - Gas Tx'!$B52,Data!$C:$C,'Profitability - Gas Tx'!I$48) -> 12719407.04 | J52: =SUMIFS(Data!$D:$D,Data!$A:$A,'Profitability - Gas Tx'!$C$4,Data!$B:$B,'Profitability - Gas Tx'!$B52,Data!$C:$C,'Profitability - Gas Tx'!J$48) -> 13358563.8 | K52: =SUMIFS(Data!$D:$D,Data!$A:$A,'Profitability - Gas Tx'!$C$4,Data!$B:$B,'Profitability - Gas Tx'!$B52,Data!$C:$C,'Profitability - Gas Tx'!K$48) -> 10729255.31 | L52: =SUMIFS(Data!$D:$D,Data!$A:$A,'Profitability - Gas Tx'!$C$4,Data!$B:$B,'Profitability - Gas Tx'!$B52,Data!$C:$C,'Profitability - Gas Tx'!L$48) -> 10096317.39 | M52: =SUMIFS(Data!$D:$D,Data!$A:$A,'Profitability - Gas Tx'!$C$4,Data!$B:$B,'Profitability - Gas Tx'!$B52,Data!$C:$C,'Profitability - Gas Tx'!M$48) -> 11052579.83
B54: Source: Annual RIN Financial - Opex - 2014 to 2024
B57: Total Earnings before Interest, Tax, Depreciation & Amortisation (EBITDA) | C57: =C46-C51 -> -11412055.45 | D57: =D46-D51 -> -11669200.23 | E57: -12125176.58 | F57: -12221570.51 | G57: -11748571.74 | H57: -12049037.24 | I57: -12198028.39 | J57: -10981058.69 | K57: =K46-K51 -> -12991294.48 | L57: =L46-L51 -> -15616022.4 | M57: =M46-M51 -> -14457007.32
B59: Depreciation | C59: 2014 | D59: 2015 | E59: 2016 | F59: 2017 | G59: 2018 | H59: 2019 | I59: 2020 | J59: 2021 | K59: 2022 | L59: 2023 | M59: 2024
B60: Nominal Straight Line Depreciation | C60: =SUMIFS(Data!$D:$D,Data!$A:$A,'Profitability - Gas Tx'!$C$4,Data!$B:$B,'Profitability - Gas Tx'!$B60,Data!$C:$C,'Profitability - Gas Tx'!C$59) -> 5635374.243 | D60: =SUMIFS(Data!$D:$D,Data!$A:$A,'Profitability - Gas Tx'!$C$4,Data!$B:$B,'Profitability - Gas Tx'!$B60,Data!$C:$C,'Profitability - Gas Tx'!D$59) -> 5864832.844 | E60: =SUMIFS(Data!$D:$D,Data!$A:$A,'Profitability - Gas Tx'!$C$4,Data!$B:$B,'Profitability - Gas Tx'!$B60,Data!$C:$C,'Profitability - Gas Tx'!E$59) -> 3381143.924 | F60: =SUMIFS(Data!$D:$D,Data!$A:$A,'Profitability - Gas Tx'!$C$4,Data!$B:$B,'Profitability - Gas Tx'!$B60,Data!$C:$C,'Profitability - Gas Tx'!F$59) -> 3509657.185 | G60: =SUMIFS(Data!$D:$D,Data!$A:$A,'Profitability - Gas Tx'!$C$4,Data!$B:$B,'Profitability - Gas Tx'!$B60,Data!$C:$C,'Profitability - Gas Tx'!G$59) -> 3812538.68 | H60: =SUMIFS(Data!$D:$D,Data!$A:$A,'Profitability - Gas Tx'!$C$4,Data!$B:$B,'Profitability - Gas Tx'!$B60,Data!$C:$C,'Profitability - Gas Tx'!H$59) -> 4008104.443 | I60: =SUMIFS(Data!$D:$D,Data!$A:$A,'Profitability - Gas Tx'!$C$4,Data!$B:$B,'Profitability - Gas Tx'!$B60,Data!$C:$C,'Profitability - Gas Tx'!I$59) -> 4203322.548 | J60: =SUMIFS(Data!$D:$D,Data!$A:$A,'Profitability - Gas Tx'!$C$4,Data!$B:$B,'Profitability - Gas Tx'!$B60,Data!$C:$C,'Profitability - Gas Tx'!J$59) -> 4410630.359 | K60: =SUMIFS(Data!$D:$D,Data!$A:$A,'Profitability - Gas Tx'!$C$4,Data!$B:$B,'Profitability - Gas Tx'!$B60,Data!$C:$C,'Profitability - Gas Tx'!K$59) -> 4362193.65 | L60: =SUMIFS(Data!$D:$D,Data!$A:$A,'Profitability - Gas Tx'!$C$4,Data!$B:$B,'Profitability - Gas Tx'!$B60,Data!$C:$C,'Profitability - Gas Tx'!L$59) -> 4702275.317 | M60: =SUMIFS(Data!$D:$D,Data!$A:$A,'Profitability - Gas Tx'!$C$4,Data!$B:$B,'Profitability - Gas Tx'!$B60,Data!$C:$C,'Profitability - Gas Tx'!M$59) -> 5228369.479
B61: Indexation of opening Regulatory Asset Base | C61: =IF($C$6="Inclusive",C87*C80,"n/a") -> n/a | D61: n/a | E61: n/a | F61: n/a | G61: n/a | H61: n/a | I61: n/a | J61: n/a | K61: n/a | L61: n/a | M61: n/a
B63: Source: Roll Forward Model - Nominal straight line depreciation - 2014 to 2024 Where not available - Post tax revenue model - Nominal straight line depreciation (updated for CPI)
B66: Total Earnings before Interest & Tax (EBIT) | C66: =IF($C$6="Inclusive",C57-C60+C61,C57-C60) -> -17047429.7 | D66: =IF($C$6="Inclusive",D57-D60+D61,D57-D60) -> -17534033.07 | E66: -15506320.5 | F66: -15731227.7 | G66: -15561110.42 | H66: -16057141.68 | I66: -16401350.94 | J66: -15391689.05 | K66: =IF($C$6="Inclusive",K57-K60+K61,K57-K60) -> -17353488.13 | L66: -20318297.72 | M66: =IF($C$6="Inclusive",M57-M60+M61,M57-M60) -> -19685376.8
B68: Supplementary Information
B70: Incentive schemes | C70: 2014 | D70: 2015 | E70: 2016 | F70: 2017 | G70: 2018 | H70: 2019 | I70: 2020 | J70: 2021 | K70: 2022 | L70: 2023 | M70: 2024
B71: EBSS | C71: =SUMIFS(Data!$D:$D,Data!$A:$A,'Profitability - Gas Tx'!$C$4,Data!$B:$B,'Profitability - Gas Tx'!$B71,Data!$C:$C,'Profitability - Gas Tx'!C$70) -> 0 | D71: =SUMIFS(Data!$D:$D,Data!$A:$A,'Profitability - Gas Tx'!$C$4,Data!$B:$B,'Profitability - Gas Tx'!$B71,Data!$C:$C,'Profitability - Gas Tx'!D$70) -> 0 | E71: =SUMIFS(Data!$D:$D,Data!$A:$A,'Profitability - Gas Tx'!$C$4,Data!$B:$B,'Profitability - Gas Tx'!$B71,Data!$C:$C,'Profitability - Gas Tx'!E$70) -> 0 | F71: =SUMIFS(Data!$D:$D,Data!$A:$A,'Profitability - Gas Tx'!$C$4,Data!$B:$B,'Profitability - Gas Tx'!$B71,Data!$C:$C,'Profitability - Gas Tx'!F$70) -> 0 | G71: =SUMIFS(Data!$D:$D,Data!$A:$A,'Profitability - Gas Tx'!$C$4,Data!$B:$B,'Profitability - Gas Tx'!$B71,Data!$C:$C,'Profitability - Gas Tx'!G$70) -> 0 | H71: =SUMIFS(Data!$D:$D,Data!$A:$A,'Profitability - Gas Tx'!$C$4,Data!$B:$B,'Profitability - Gas Tx'!$B71,Data!$C:$C,'Profitability - Gas Tx'!H$70) -> 0 | I71: =SUMIFS(Data!$D:$D,Data!$A:$A,'Profitability - Gas Tx'!$C$4,Data!$B:$B,'Profitability - Gas Tx'!$B71,Data!$C:$C,'Profitability - Gas Tx'!I$70) -> 0 | J71: =SUMIFS(Data!$D:$D,Data!$A:$A,'Profitability - Gas Tx'!$C$4,Data!$B:$B,'Profitability - Gas Tx'!$B71,Data!$C:$C,'Profitability - Gas Tx'!J$70) -> 0 | K71: =SUMIFS(Data!$D:$D,Data!$A:$A,'Profitability - Gas Tx'!$C$4,Data!$B:$B,'Profitability - Gas Tx'!$B71,Data!$C:$C,'Profitability - Gas Tx'!K$70) -> 0 | L71: =SUMIFS(Data!$D:$D,Data!$A:$A,'Profitability - Gas Tx'!$C$4,Data!$B:$B,'Profitability - Gas Tx'!$B71,Data!$C:$C,'Profitability - Gas Tx'!L$70) -> 0 | M71: =SUMIFS(Data!$D:$D,Data!$A:$A,'Profitability - Gas Tx'!$C$4,Data!$B:$B,'Profitability - Gas Tx'!$B71,Data!$C:$C,'Profitability - Gas Tx'!M$70) -> 0
B72: Efficiency carryover | C72: =SUMIFS(Data!$D:$D,Data!$A:$A,'Profitability - Gas Tx'!$C$4,Data!$B:$B,'Profitability - Gas Tx'!$B72,Data!$C:$C,'Profitability - Gas Tx'!C$70) -> 0 | D72: =SUMIFS(Data!$D:$D,Data!$A:$A,'Profitability - Gas Tx'!$C$4,Data!$B:$B,'Profitability - Gas Tx'!$B72,Data!$C:$C,'Profitability - Gas Tx'!D$70) -> 0 | E72: =SUMIFS(Data!$D:$D,Data!$A:$A,'Profitability - Gas Tx'!$C$4,Data!$B:$B,'Profitability - Gas Tx'!$B72,Data!$C:$C,'Profitability - Gas Tx'!E$70) -> 0 | F72: =SUMIFS(Data!$D:$D,Data!$A:$A,'Profitability - Gas Tx'!$C$4,Data!$B:$B,'Profitability - Gas Tx'!$B72,Data!$C:$C,'Profitability - Gas Tx'!F$70) -> 0 | G72: =SUMIFS(Data!$D:$D,Data!$A:$A,'Profitability - Gas Tx'!$C$4,Data!$B:$B,'Profitability - Gas Tx'!$B72,Data!$C:$C,'Profitability - Gas Tx'!G$70) -> 0 | H72: =SUMIFS(Data!$D:$D,Data!$A:$A,'Profitability - Gas Tx'!$C$4,Data!$B:$B,'Profitability - Gas Tx'!$B72,Data!$C:$C,'Profitability - Gas Tx'!H$70) -> 0 | I72: =SUMIFS(Data!$D:$D,Data!$A:$A,'Profitability - Gas Tx'!$C$4,Data!$B:$B,'Profitability - Gas Tx'!$B72,Data!$C:$C,'Profitability - Gas Tx'!I$70) -> 0 | J72: =SUMIFS(Data!$D:$D,Data!$A:$A,'Profitability - Gas Tx'!$C$4,Data!$B:$B,'Profitability - Gas Tx'!$B72,Data!$C:$C,'Profitability - Gas Tx'!J$70) -> 0 | K72: =SUMIFS(Data!$D:$D,Data!$A:$A,'Profitability - Gas Tx'!$C$4,Data!$B:$B,'Profitability - Gas Tx'!$B72,Data!$C:$C,'Profitability - Gas Tx'!K$70) -> 0 | L72: =SUMIFS(Data!$D:$D,Data!$A:$A,'Profitability - Gas Tx'!$C$4,Data!$B:$B,'Profitability - Gas Tx'!$B72,Data!$C:$C,'Profitability - Gas Tx'!L$70) -> 2708684.886 | M72: =SUMIFS(Data!$D:$D,Data!$A:$A,'Profitability - Gas Tx'!$C$4,Data!$B:$B,'Profitability - Gas Tx'!$B72,Data!$C:$C,'Profitability - Gas Tx'!M$70) -> 0
B73: other | C73: =SUMIFS(Data!$D:$D,Data!$A:$A,'Profitability - Gas Tx'!$C$4,Data!$B:$B,'Profitability - Gas Tx'!$B73,Data!$C:$C,'Profitability - Gas Tx'!C$70) -> 0 | D73: =SUMIFS(Data!$D:$D,Data!$A:$A,'Profitability - Gas Tx'!$C$4,Data!$B:$B,'Profitability - Gas Tx'!$B73,Data!$C:$C,'Profitability - Gas Tx'!D$70) -> 0 | E73: =SUMIFS(Data!$D:$D,Data!$A:$A,'Profitability - Gas Tx'!$C$4,Data!$B:$B,'Profitability - Gas Tx'!$B73,Data!$C:$C,'Profitability - Gas Tx'!E$70) -> 0 | F73: =SUMIFS(Data!$D:$D,Data!$A:$A,'Profitability - Gas Tx'!$C$4,Data!$B:$B,'Profitability - Gas Tx'!$B73,Data!$C:$C,'Profitability - Gas Tx'!F$70) -> 0 | G73: =SUMIFS(Data!$D:$D,Data!$A:$A,'Profitability - Gas Tx'!$C$4,Data!$B:$B,'Profitability - Gas Tx'!$B73,Data!$C:$C,'Profitability - Gas Tx'!G$70) -> 0 | H73: =SUMIFS(Data!$D:$D,Data!$A:$A,'Profitability - Gas Tx'!$C$4,Data!$B:$B,'Profitability - Gas Tx'!$B73,Data!$C:$C,'Profitability - Gas Tx'!H$70) -> 0 | I73: =SUMIFS(Data!$D:$D,Data!$A:$A,'Profitability - Gas Tx'!$C$4,Data!$B:$B,'Profitability - Gas Tx'!$B73,Data!$C:$C,'Profitability - Gas Tx'!I$70) -> 0 | J73: =SUMIFS(Data!$D:$D,Data!$A:$A,'Profitability - Gas Tx'!$C$4,Data!$B:$B,'Profitability - Gas Tx'!$B73,Data!$C:$C,'Profitability - Gas Tx'!J$70) -> 0 | K73: =SUMIFS(Data!$D:$D,Data!$A:$A,'Profitability - Gas Tx'!$C$4,Data!$B:$B,'Profitability - Gas Tx'!$B73,Data!$C:$C,'Profitability - Gas Tx'!K$70) -> 0 | L73: =SUMIFS(Data!$D:$D,Data!$A:$A,'Profitability - Gas Tx'!$C$4,Data!$B:$B,'Profitability - Gas Tx'!$B73,Data!$C:$C,'Profitability - Gas Tx'!L$70) -> 0 | M73: =SUMIFS(Data!$D:$D,Data!$A:$A,'Profitability - Gas Tx'!$C$4,Data!$B:$B,'Profitability - Gas Tx'!$B73,Data!$C:$C,'Profitability - Gas Tx'!M$70) -> 0
B74: Total revenue (penalties) allowed (deducted) through incentive schemes | C74: =SUM(C71:C73) -> 0 | D74: 0 | E74: 0 | F74: 0 | G74: 0 | H74: 0 | I74: 0 | J74: 0 | K74: =SUM(K71:K73) -> 0 | L74: 2708684.886 | M74: 0
B76: Source: Annual RIN - Revenue - 2014 to 2024
C79: 2014 | D79: 2015 | E79: 2016 | F79: 2017 | G79: 2018 | H79: 2019 | I79: 2020 | J79: 2021 | K79: 2022 | L79: 2023 | M79: 2024
B80: Opening Regulatory Asset Base (Nominal) | C80: =IF($F$6="Yes",#REF!,SUMIFS(Data!$D:$D,Data!$A:$A,'Profitability - Gas Tx'!$C$4,Data!$B:$B,'Profitability - Gas Tx'!$B80,Data!$C:$C,'Profitability - Gas Tx'!C$79)) -> 106147133 | D80: =IF($F$6="Yes",#REF!,SUMIFS(Data!$D:$D,Data!$A:$A,'Profitability - Gas Tx'!$C$4,Data!$B:$B,'Profitability - Gas Tx'!$B80,Data!$C:$C,'Profitability - Gas Tx'!D$79)) -> 107634764.6 | E80: =IF($F$6="Yes",#REF!,SUMIFS(Data!$D:$D,Data!$A:$A,'Profitability - Gas Tx'!$C$4,Data!$B:$B,'Profitability - Gas Tx'!$B80,Data!$C:$C,'Profitability - Gas Tx'!E$79)) -> 107385103.7 | F80: =IF($F$6="Yes",#REF!,SUMIFS(Data!$D:$D,Data!$A:$A,'Profitability - Gas Tx'!$C$4,Data!$B:$B,'Profitability - Gas Tx'!$B80,Data!$C:$C,'Profitability - Gas Tx'!F$79)) -> 115816817.3 | G80: =IF($F$6="Yes",#REF!,SUMIFS(Data!$D:$D,Data!$A:$A,'Profitability - Gas Tx'!$C$4,Data!$B:$B,'Profitability - Gas Tx'!$B80,Data!$C:$C,'Profitability - Gas Tx'!G$79)) -> 119353974.9 | H80: =IF($F$6="Yes",#REF!,SUMIFS(Data!$D:$D,Data!$A:$A,'Profitability - Gas Tx'!$C$4,Data!$B:$B,'Profitability - Gas Tx'!$B80,Data!$C:$C,'Profitability - Gas Tx'!H$79)) -> 119721535.5 | I80: =IF($F$6="Yes",#REF!,SUMIFS(Data!$D:$D,Data!$A:$A,'Profitability - Gas Tx'!$C$4,Data!$B:$B,'Profitability - Gas Tx'!$B80,Data!$C:$C,'Profitability - Gas Tx'!I$79)) -> 122573879.3 | J80: =IF($F$6="Yes",#REF!,SUMIFS(Data!$D:$D,Data!$A:$A,'Profitability - Gas Tx'!$C$4,Data!$B:$B,'Profitability - Gas Tx'!$B80,Data!$C:$C,'Profitability - Gas Tx'!J$79)) -> 131234846.9 | K80: =IF($F$6="Yes",#REF!,SUMIFS(Data!$D:$D,Data!$A:$A,'Profitability - Gas Tx'!$C$4,Data!$B:$B,'Profitability - Gas Tx'!$B80,Data!$C:$C,'Profitability - Gas Tx'!K$79)) -> 127583739.9 | L80: =IF($F$6="Yes",#REF!,SUMIFS(Data!$D:$D,Data!$A:$A,'Profitability - Gas Tx'!$C$4,Data!$B:$B,'Profitability - Gas Tx'!$B80,Data!$C:$C,'Profitability - Gas Tx'!L$79)) -> 134104624.7 | M80: =IF($F$6="Yes",#REF!,SUMIFS(Data!$D:$D,Data!$A:$A,'Profitability - Gas Tx'!$C$4,Data!$B:$B,'Profitability - Gas Tx'!$B80,Data!$C:$C,'Profitability - Gas Tx'!M$79)) -> 147303164.8
B81: Opening RAB in common real dollar terms (for calculating real returns on assets) | C81: =C80*(1+C87) -> 109256914.9 | D81: 109064444.9 | E81: 108792772.1 | F81: 117526285.1 | G81: 121632549.7 | H81: 121857511.3 | I81: 124829839.3 | J81: 132364240.9 | K81: 132046989.2 | L81: 144607460.1 | M81: 153271871
B83: Source: Roll Forward Model - Opening RAB Balance - 2014 to 2024
B86: Inflation | C86: 2014 | D86: 2015 | E86: 2016 | F86: 2017 | G86: 2018 | H86: 2019 | I86: 2020 | J86: 2021 | K86: 2022 | L86: 2023 | M86: 2024
B87: Inflation Rate | C87: =SUMIFS(Data!$D:$D,Data!$A:$A,'Profitability - Gas Tx'!$C$4,Data!$B:$B,'Profitability - Gas Tx'!$B87,Data!$C:$C,'Profitability - Gas Tx'!C$86) -> 0.0292969 | D87: =SUMIFS(Data!$D:$D,Data!$A:$A,'Profitability - Gas Tx'!$C$4,Data!$B:$B,'Profitability - Gas Tx'!$B87,Data!$C:$C,'Profitability - Gas Tx'!D$86) -> 0.0132827 | E87: =SUMIFS(Data!$D:$D,Data!$A:$A,'Profitability - Gas Tx'!$C$4,Data!$B:$B,'Profitability - Gas Tx'!$B87,Data!$C:$C,'Profitability - Gas Tx'!E$86) -> 0.0131086 | F87: =SUMIFS(Data!$D:$D,Data!$A:$A,'Profitability - Gas Tx'!$C$4,Data!$B:$B,'Profitability - Gas Tx'!$B87,Data!$C:$C,'Profitability - Gas Tx'!F$86) -> 0.0147601 | G87: =SUMIFS(Data!$D:$D,Data!$A:$A,'Profitability - Gas Tx'!$C$4,Data!$B:$B,'Profitability - Gas Tx'!$B87,Data!$C:$C,'Profitability - Gas Tx'!G$86) -> 0.0190909 | H87: =SUMIFS(Data!$D:$D,Data!$A:$A,'Profitability - Gas Tx'!$C$4,Data!$B:$B,'Profitability - Gas Tx'!$B87,Data!$C:$C,'Profitability - Gas Tx'!H$86) -> 0.0178412 | I87: =SUMIFS(Data!$D:$D,Data!$A:$A,'Profitability - Gas Tx'!$C$4,Data!$B:$B,'Profitability - Gas Tx'!$B87,Data!$C:$C,'Profitability - Gas Tx'!I$86) -> 0.0184049 | J87: =SUMIFS(Data!$D:$D,Data!$A:$A,'Profitability - Gas Tx'!$C$4,Data!$B:$B,'Profitability - Gas Tx'!$B87,Data!$C:$C,'Profitability - Gas Tx'!J$86) -> 0.0086059 | K87: =SUMIFS(Data!$D:$D,Data!$A:$A,'Profitability - Gas Tx'!$C$4,Data!$B:$B,'Profitability - Gas Tx'!$B87,Data!$C:$C,'Profitability - Gas Tx'!K$86) -> 0.0349829 | L87: =SUMIFS(Data!$D:$D,Data!$A:$A,'Profitability - Gas Tx'!$C$4,Data!$B:$B,'Profitability - Gas Tx'!$B87,Data!$C:$C,'Profitability - Gas Tx'!L$86) -> 0.07831821929 | M87: =SUMIFS(Data!$D:$D,Data!$A:$A,'Profitability - Gas Tx'!$C$4,Data!$B:$B,'Profitability - Gas Tx'!$B87,Data!$C:$C,'Profitability - Gas Tx'!M$86) -> 0.04051987768
B88: Forecast inflation | C88: =SUMIFS(Data!$D:$D,Data!$A:$A,'Profitability - Gas Tx'!$C$4,Data!$B:$B,'Profitability - Gas Tx'!$B88,Data!$C:$C,'Profitability - Gas Tx'!C$86) -> 0.0255 | D88: =SUMIFS(Data!$D:$D,Data!$A:$A,'Profitability - Gas Tx'!$C$4,Data!$B:$B,'Profitability - Gas Tx'!$B88,Data!$C:$C,'Profitability - Gas Tx'!D$86) -> 0.0255 | E88: =SUMIFS(Data!$D:$D,Data!$A:$A,'Profitability - Gas Tx'!$C$4,Data!$B:$B,'Profitability - Gas Tx'!$B88,Data!$C:$C,'Profitability - Gas Tx'!E$86) -> 0.0255 | F88: =SUMIFS(Data!$D:$D,Data!$A:$A,'Profitability - Gas Tx'!$C$4,Data!$B:$B,'Profitability - Gas Tx'!$B88,Data!$C:$C,'Profitability - Gas Tx'!F$86) -> 0.02390881249 | G88: =SUMIFS(Data!$D:$D,Data!$A:$A,'Profitability - Gas Tx'!$C$4,Data!$B:$B,'Profitability - Gas Tx'!$B88,Data!$C:$C,'Profitability - Gas Tx'!G$86) -> 0.02390881249 | H88: =SUMIFS(Data!$D:$D,Data!$A:$A,'Profitability - Gas Tx'!$C$4,Data!$B:$B,'Profitability - Gas Tx'!$B88,Data!$C:$C,'Profitability - Gas Tx'!H$86) -> 0.02390881249 | I88: =SUMIFS(Data!$D:$D,Data!$A:$A,'Profitability - Gas Tx'!$C$4,Data!$B:$B,'Profitability - Gas Tx'!$B88,Data!$C:$C,'Profitability - Gas Tx'!I$86) -> 0.02390881249 | J88: =SUMIFS(Data!$D:$D,Data!$A:$A,'Profitability - Gas Tx'!$C$4,Data!$B:$B,'Profitability - Gas Tx'!$B88,Data!$C:$C,'Profitability - Gas Tx'!J$86) -> 0.02390881249 | K88: =SUMIFS(Data!$D:$D,Data!$A:$A,'Profitability - Gas Tx'!$C$4,Data!$B:$B,'Profitability - Gas Tx'!$B88,Data!$C:$C,'Profitability - Gas Tx'!K$86) -> 0.0199938725 | L88: =SUMIFS(Data!$D:$D,Data!$A:$A,'Profitability - Gas Tx'!$C$4,Data!$B:$B,'Profitability - Gas Tx'!$B88,Data!$C:$C,'Profitability - Gas Tx'!L$86) -> 0.0199938725 | M88: =SUMIFS(Data!$D:$D,Data!$A:$A,'Profitability - Gas Tx'!$C$4,Data!$B:$B,'Profitability - Gas Tx'!$B88,Data!$C:$C,'Profitability - Gas Tx'!M$86) -> 0.0199938725
B90: Source: Roll Forward Model - Inflation Rate - 2014 to 2024
